Workbook

Sheet 2012-13M
K1: Hamlet Open Sabre | N1: Bedford Junior | P1: Selection Date - Sosnowiec | Q1: Gateshead | S1: Selection Date - Dormagen, Lignano | T1: Welsh Open | W1: Sosnowiec WC, POL | Y1: Selection Date - Dourdan | Z1: Dormagen WC, GER | AC1: Lignano Sabbiadoro WC, ITA | AE1: Selection Date - European Championships | AF1: Dourdan WC, FRA | AI1: U20 National Championships, Sheffield | AK1: Selection Date - World Championships European Championships Team Preparation Day | AL1: European Championships | AN1: World Championships Team Preparation Day | AO1: World Championships, Algiers, DZA
B2: 13 Oct 12 | K2: 01/09/2012 | N2: 22/09/2012 | P2: 23/09/2012 | Q2: 13/10/2012 | S2: 14/10/2012 | T2: 10/11/2012 | W2: 18/11/2012 | Y2: 18/11/2012 | Z2: 01/12/2012 | AC2: 06/01/2013 | AE2: 08/01/2013 | AF2: 19/01/2013 | AI2: 10/02/2013 | AK2: 10/02/2013 17/02/2013 | AL2: 05-09/03/2013 | AN2: 17/03/2013 | AO2: 02-07/04/2013
J3: NIF | L3: 170 (85*2) | O3: 111 | R3: 67
J4: CompType | L4: dom | O4: dom | R4: dom | U4: dom | X4: int | AA4: int | AD4: int | AG4: int | AJ4: nat | AM4: int | AP4: int
J5: Entries | L5: 119 | O5: 77 | R5: 33
J6: Cutoff | L6: 64 | O6: 57 | R6: 25
J7: Entry Form
A8: Rank | B8: Name | C8: Club | D8: HC | E8: Year | F8: Nats | G8: Dom | H8: Int | I8: Total | J8: Nt+Dm+In
A9: 1 | B9: AIYENURO, Soji | C9: Camden | D9: ENG | E9: 93 | F9: 0 | G9: 6620 | H9: 0 | I9: 6620 | J9: 0+3+0 | K9: 2nd | L9: =IF(eVAL(K9)<=L$6,VLOOKUP(eVAL(K9),Multiplier,2)*eVAL(L$3),0) -> 3060 | N9: 1st | O9: =IF(eVAL(N9)<=O$6,VLOOKUP(eVAL(N9),Multiplier,2)*eVAL(O$3),0) -> 2220 | Q9: 1st | R9: =IF(eVAL(Q9)>0,IF(eVAL(Q9)<=R$6,VLOOKUP(eVAL(Q9),Multiplier,2)*R$3,0),"") -> 1340
A10: 2 | B10: SAUNDERS, Brynmar | C10: Truro | D10: ENG | E10: 94 | F10: 0 | G10: 4081.2 | H10: 0 | I10: 4081.2 | J10: 0+3+0 | K10: 28th | L10: =IF(eVAL(K10)<=L$6,VLOOKUP(eVAL(K10),Multiplier,2)*eVAL(L$3),0) -> 877.2 | N10: 2nd | O10: =IF(eVAL(N10)<=O$6,VLOOKUP(eVAL(N10),Multiplier,2)*eVAL(O$3),0) -> 1998 | Q10: 2nd | R10: =IF(eVAL(Q10)>0,IF(eVAL(Q10)<=R$6,VLOOKUP(eVAL(Q10),Multiplier,2)*R$3,0),"") -> 1206
A11: 3 | B11: BETTLE, Will | C11: CADS | D11: ENG | E11: 94 | F11: 0 | G11: 3807.92 | H11: 0 | I11: 3807.92 | J11: 0+3+0 | K11: 10th | L11: =IF(eVAL(K11)<=L$6,VLOOKUP(eVAL(K11),Multiplier,2)*eVAL(L$3),0) -> 1502.8 | N11: 7th | O11: =IF(eVAL(N11)<=O$6,VLOOKUP(eVAL(N11),Multiplier,2)*eVAL(O$3),0) -> 1434.12 | Q11: 5th | R11: =IF(eVAL(Q11)>0,IF(eVAL(Q11)<=R$6,VLOOKUP(eVAL(Q11),Multiplier,2)*R$3,0),"") -> 871
A12: 4 | B12: VAN HOFFELEN, Camille | C12: Camden | D12: ENG | E12: 93 | F12: 0 | G12: 3428.56 | H12: 0 | I12: 3428.56 | J12: 0+3+0 | K12: 22nd | L12: =IF(eVAL(K12)<=L$6,VLOOKUP(eVAL(K12),Multiplier,2)*eVAL(L$3),0) -> 918 | N12: 6th | O12: =IF(eVAL(N12)<=O$6,VLOOKUP(eVAL(N12),Multiplier,2)*eVAL(O$3),0) -> 1438.56 | Q12: 3rd | R12: =IF(eVAL(Q12)>0,IF(eVAL(Q12)<=R$6,VLOOKUP(eVAL(Q12),Multiplier,2)*R$3,0),"") -> 1072
A13: 5 | B13: BOTELER, Harry | C13: Truro | D13: ENG | E13: 93 | F13: 0 | G13: 3400 | H13: 0 | I13: 3400 | J13: 0+1+0 | K13: 1st | L13: =IF(eVAL(K13)<=L$6,VLOOKUP(eVAL(K13),Multiplier,2)*eVAL(L$3),0) -> 3400 | R13: =IF(eVAL(Q13)>0,IF(eVAL(Q13)<=R$6,VLOOKUP(eVAL(Q13),Multiplier,2)*R$3,0),"") -> 
A14: 6 | B14: JENNINGS, Patrick | C14: Rivington Park | D14: ENG | E14: 94 | F14: 0 | G14: 3358.48 | H14: 0 | I14: 3358.48 | J14: 0+3+0 | K14: 31st | L14: =IF(eVAL(K14)<=L$6,VLOOKUP(eVAL(K14),Multiplier,2)*eVAL(L$3),0) -> 856.8 | N14: 8th | O14: =IF(eVAL(N14)<=O$6,VLOOKUP(eVAL(N14),Multiplier,2)*eVAL(O$3),0) -> 1429.68 | Q14: 3rd | R14: =IF(eVAL(Q14)>0,IF(eVAL(Q14)<=R$6,VLOOKUP(eVAL(Q14),Multiplier,2)*R$3,0),"") -> 1072
A15: 7 | B15: DEARY, William | C15: Truro | D15: ENG | E15: 97 | F15: 0 | G15: 3272 | H15: 0 | I15: 3272 | J15: 0+2+0 | K15: 11th | L15: =IF(eVAL(K15)<=L$6,VLOOKUP(eVAL(K15),Multiplier,2)*eVAL(L$3),0) -> 1496 | N15: 3rd | O15: =IF(eVAL(N15)<=O$6,VLOOKUP(eVAL(N15),Multiplier,2)*eVAL(O$3),0) -> 1776 | R15: =IF(eVAL(Q15)>0,IF(eVAL(Q15)<=R$6,VLOOKUP(eVAL(Q15),Multiplier,2)*R$3,0),"") -> 
A16: 8 | B16: AMSALEM, Rubin | C16: Camden | D16: ENG | E16: 96 | F16: 0 | G16: 3175.28 | H16: 0 | I16: 3175.28 | J16: 0+2+0 | K16: 8th | L16: =IF(eVAL(K16)<=L$6,VLOOKUP(eVAL(K16),Multiplier,2)*eVAL(L$3),0) -> 2189.6 | N16: 9th | O16: =IF(eVAL(N16)<=O$6,VLOOKUP(eVAL(N16),Multiplier,2)*eVAL(O$3),0) -> 985.68 | R16: =IF(eVAL(Q16)>0,IF(eVAL(Q16)<=R$6,VLOOKUP(eVAL(Q16),Multiplier,2)*R$3,0),"") -> 
A17: 9 | B17: SLANKARD, Kirk | C17: City | D17: ENG | E17: 93 | F17: 0 | G17: 2932.2 | H17: 0 | I17: 2932.2 | J17: 0+2+0 | K17: 12th | L17: =IF(eVAL(K17)<=L$6,VLOOKUP(eVAL(K17),Multiplier,2)*eVAL(L$3),0) -> 1489.2 | N17: 5th | O17: =IF(eVAL(N17)<=O$6,VLOOKUP(eVAL(N17),Multiplier,2)*eVAL(O$3),0) -> 1443 | R17: =IF(eVAL(Q17)>0,IF(eVAL(Q17)<=R$6,VLOOKUP(eVAL(Q17),Multiplier,2)*R$3,0),"") -> 
A18: 10 | B18: LAWRENCE, Chris | C18: Imperial | D18: ENG | E18: 93 | F18: 0 | G18: 2779.36 | H18: 0 | I18: 2779.36 | J18: 0+3+0 | K18: 17th | L18: =IF(eVAL(K18)<=L$6,VLOOKUP(eVAL(K18),Multiplier,2)*eVAL(L$3),0) -> 952 | N18: 15th | O18: =IF(eVAL(N18)<=O$6,VLOOKUP(eVAL(N18),Multiplier,2)*eVAL(O$3),0) -> 959.04 | Q18: 6th | R18: =IF(eVAL(Q18)>0,IF(eVAL(Q18)<=R$6,VLOOKUP(eVAL(Q18),Multiplier,2)*R$3,0),"") -> 868.32
A19: 11 | B19: HORRIX, Jack | C19: Camden | D19: ENG | E19: 95 | F19: 0 | G19: 2662.84 | H19: 0 | I19: 2662.84 | J19: 0+3+0 | K19: 14th | L19: =IF(eVAL(K19)<=L$6,VLOOKUP(eVAL(K19),Multiplier,2)*eVAL(L$3),0) -> 1475.6 | N19: 23rd | O19: =IF(eVAL(N19)<=O$6,VLOOKUP(eVAL(N19),Multiplier,2)*eVAL(O$3),0) -> 594.96 | Q19: 10th | R19: =IF(eVAL(Q19)>0,IF(eVAL(Q19)<=R$6,VLOOKUP(eVAL(Q19),Multiplier,2)*R$3,0),"") -> 592.28
A20: 12 | B20: WEBB, Jonathan | C20: Camden | D20: ENG | E20: 96 | F20: 0 | G20: 2639.6 | H20: 0 | I20: 2639.6 | J20: 0+2+0 | K20: 30th | L20: =IF(eVAL(K20)<=L$6,VLOOKUP(eVAL(K20),Multiplier,2)*eVAL(L$3),0) -> 863.6 | N20: 3rd | O20: =IF(eVAL(N20)<=O$6,VLOOKUP(eVAL(N20),Multiplier,2)*eVAL(O$3),0) -> 1776 | R20: =IF(eVAL(Q20)>0,IF(eVAL(Q20)<=R$6,VLOOKUP(eVAL(Q20),Multiplier,2)*R$3,0),"") -> 
A21: 13 | B21: YOUNG, Sebastian | C21: Shakespeare's Swords | D21: ENG | E21: 93 | F21: 0 | G21: 2134.84 | H21: 0 | I21: 2134.84 | J21: 0+3+0 | K21: 20th | L21: =IF(eVAL(K21)<=L$6,VLOOKUP(eVAL(K21),Multiplier,2)*eVAL(L$3),0) -> 931.6 | N21: 20th | O21: =IF(eVAL(N21)<=O$6,VLOOKUP(eVAL(N21),Multiplier,2)*eVAL(O$3),0) -> 608.28 | Q21: 9th | R21: =IF(eVAL(Q21)>0,IF(eVAL(Q21)<=R$6,VLOOKUP(eVAL(Q21),Multiplier,2)*R$3,0),"") -> 594.96
A22: 14 | B22: GANDER-COMPTON, Jacob | C22: Camden | D22: ENG | E22: 95 | F22: 0 | G22: 2129.08 | H22: 0 | I22: 2129.08 | J22: 0+3+0 | K22: 50th | L22: =IF(eVAL(K22)<=L$6,VLOOKUP(eVAL(K22),Multiplier,2)*eVAL(L$3),0) -> 282.2 | N22: 10th | O22: =IF(eVAL(N22)<=O$6,VLOOKUP(eVAL(N22),Multiplier,2)*eVAL(O$3),0) -> 981.24 | Q22: 7th | R22: =IF(eVAL(Q22)>0,IF(eVAL(Q22)<=R$6,VLOOKUP(eVAL(Q22),Multiplier,2)*R$3,0),"") -> 865.64
A23: 15 | B23: SIMMONS, John | C23: Shakespeare's Swords | D23: ENG | E23: 93 | F23: 0 | G23: 2073.52 | H23: 0 | I23: 2073.52 | J23: 0+3+0 | K23: 26th | L23: =IF(eVAL(K23)<=L$6,VLOOKUP(eVAL(K23),Multiplier,2)*eVAL(L$3),0) -> 890.8 | N23: 21st | O23: =IF(eVAL(N23)<=O$6,VLOOKUP(eVAL(N23),Multiplier,2)*eVAL(O$3),0) -> 603.84 | Q23: 15th | R23: =IF(eVAL(Q23)>0,IF(eVAL(Q23)<=R$6,VLOOKUP(eVAL(Q23),Multiplier,2)*R$3,0),"") -> 578.88
A24: 16 | B24: BOWLEY, Stan | C24: Rivington Park | D24: ENG | E24: 94 | F24: 0 | G24: 1863.92 | H24: 0 | I24: 1863.92 | J24: 0+3+0 | K24: 40th | L24: =IF(eVAL(K24)<=L$6,VLOOKUP(eVAL(K24),Multiplier,2)*eVAL(L$3),0) -> 316.2 | N24: 14th | O24: =IF(eVAL(N24)<=O$6,VLOOKUP(eVAL(N24),Multiplier,2)*eVAL(O$3),0) -> 963.48 | Q24: 13th | R24: =IF(eVAL(Q24)>0,IF(eVAL(Q24)<=R$6,VLOOKUP(eVAL(Q24),Multiplier,2)*R$3,0),"") -> 584.24
A25: 17 | B25: VEITCH, Robert | C25: Rivington Park | D25: SCO | E25: 94 | F25: 0 | G25: 1681.8 | H25: 0 | I25: 1681.8 | J25: 0+3+0 | K25: 36th | L25: =IF(eVAL(K25)<=L$6,VLOOKUP(eVAL(K25),Multiplier,2)*eVAL(L$3),0) -> 329.8 | N25: 11th | O25: =IF(eVAL(N25)<=O$6,VLOOKUP(eVAL(N25),Multiplier,2)*eVAL(O$3),0) -> 976.8 | Q25: 17th | R25: =IF(eVAL(Q25)>0,IF(eVAL(Q25)<=R$6,VLOOKUP(eVAL(Q25),Multiplier,2)*R$3,0),"") -> 375.2
A26: 18 | B26: DOWSE, Niall | C26: MX Fencing | D26: NIR | E26: 94 | F26: 0 | G26: 1566.4 | H26: 0 | I26: 1566.4 | J26: 0+3+0 | K26: 89th | L26: =IF(eVAL(K26)<=L$6,VLOOKUP(eVAL(K26),Multiplier,2)*eVAL(L$3),0) -> 0 | N26: 11th | O26: =IF(eVAL(N26)<=O$6,VLOOKUP(eVAL(N26),Multiplier,2)*eVAL(O$3),0) -> 976.8 | Q26: 11th | R26: =IF(eVAL(Q26)>0,IF(eVAL(Q26)<=R$6,VLOOKUP(eVAL(Q26),Multiplier,2)*R$3,0),"") -> 589.6
A27: 19 | B27: HOSKING, William John | C27: Truro | D27: ENG | E27: 95 | F27: 0 | G27: 1422.76 | H27: 0 | I27: 1422.76 | J27: 0+2+0 | K27: 32nd | L27: =IF(eVAL(K27)<=L$6,VLOOKUP(eVAL(K27),Multiplier,2)*eVAL(L$3),0) -> 850 | N27: 28th | O27: =IF(eVAL(N27)<=O$6,VLOOKUP(eVAL(N27),Multiplier,2)*eVAL(O$3),0) -> 572.76 | R27: =IF(eVAL(Q27)>0,IF(eVAL(Q27)<=R$6,VLOOKUP(eVAL(Q27),Multiplier,2)*R$3,0),"") -> 
A28: 20 | B28: SCOTT, Stuart | C28: Lazlo | D28: SCO | E28: 94 | F28: 0 | G28: 1315.16 | H28: 0 | I28: 1315.16 | J28: 0+3+0 | K28: 37th | L28: =IF(eVAL(K28)<=L$6,VLOOKUP(eVAL(K28),Multiplier,2)*eVAL(L$3),0) -> 326.4 | N28: 17th | O28: =IF(eVAL(N28)<=O$6,VLOOKUP(eVAL(N28),Multiplier,2)*eVAL(O$3),0) -> 621.6 | Q28: 20th | R28: =IF(eVAL(Q28)>0,IF(eVAL(Q28)<=R$6,VLOOKUP(eVAL(Q28),Multiplier,2)*R$3,0),"") -> 367.16
A29: 21 | B29: HENDRA, Tom | C29: Truro | D29: ENG | E29: 95 | F29: 0 | G29: 1304.52 | H29: 0 | I29: 1304.52 | J29: 0+2+0 | K29: 34th | L29: =IF(eVAL(K29)<=L$6,VLOOKUP(eVAL(K29),Multiplier,2)*eVAL(L$3),0) -> 336.6 | N29: 13th | O29: =IF(eVAL(N29)<=O$6,VLOOKUP(eVAL(N29),Multiplier,2)*eVAL(O$3),0) -> 967.92 | Q29: . | R29: =IF(eVAL(Q29)>0,IF(eVAL(Q29)<=R$6,VLOOKUP(eVAL(Q29),Multiplier,2)*R$3,0),"") -> 
A30: 22 | B30: HARRIS, Rafe | C30: Millfield | D30: ENG | E30: 95 | F30: 0 | G30: 1254.36 | H30: 0 | I30: 1254.36 | J30: 0+3+0 | K30: 52nd | L30: =IF(eVAL(K30)<=L$6,VLOOKUP(eVAL(K30),Multiplier,2)*eVAL(L$3),0) -> 275.4 | N30: 18th | O30: =IF(eVAL(N30)<=O$6,VLOOKUP(eVAL(N30),Multiplier,2)*eVAL(O$3),0) -> 617.16 | Q30: 22nd | R30: =IF(eVAL(Q30)>0,IF(eVAL(Q30)<=R$6,VLOOKUP(eVAL(Q30),Multiplier,2)*R$3,0),"") -> 361.8
A31: 23 | B31: COOPER, Samuel | C31: Shakespeare's Swords | D31: ENG | E31: 95 | F31: 0 | G31: 1238.48 | H31: 0 | I31: 1238.48 | J31: 0+3+0 | K31: 53rd | L31: =IF(eVAL(K31)<=L$6,VLOOKUP(eVAL(K31),Multiplier,2)*eVAL(L$3),0) -> 272 | N31: 19th | O31: =IF(eVAL(N31)<=O$6,VLOOKUP(eVAL(N31),Multiplier,2)*eVAL(O$3),0) -> 612.72 | Q31: 25th | R31: =IF(eVAL(Q31)>0,IF(eVAL(Q31)<=R$6,VLOOKUP(eVAL(Q31),Multiplier,2)*R$3,0),"") -> 353.76
A32: 24 | B32: POTTER, James | C32: Camden | D32: WAL | E32: 94 | F32: 0 | G32: 1080.52 | H32: 0 | I32: 1080.52 | J32: 0+2+0 | N32: 35th | O32: =IF(eVAL(N32)<=O$6,VLOOKUP(eVAL(N32),Multiplier,2)*eVAL(O$3),0) -> 217.56 | Q32: 8th | R32: =IF(eVAL(Q32)>0,IF(eVAL(Q32)<=R$6,VLOOKUP(eVAL(Q32),Multiplier,2)*R$3,0),"") -> 862.96
A33: 25 | B33: MAXWELL, Josh | C33: Truro | D33: ENG | E33: 94 | F33: 0 | G33: 954.6 | H33: 0 | I33: 954.6 | J33: 0+2+0 | K33: 69th | L33: =IF(eVAL(K33)<=L$6,VLOOKUP(eVAL(K33),Multiplier,2)*eVAL(L$3),0) -> 0 | N33: 16th | O33: =IF(eVAL(N33)<=O$6,VLOOKUP(eVAL(N33),Multiplier,2)*eVAL(O$3),0) -> 954.6 | R33: =IF(eVAL(Q33)>0,IF(eVAL(Q33)<=R$6,VLOOKUP(eVAL(Q33),Multiplier,2)*R$3,0),"") -> 
A34: 26 | B34: WOODBURN, Fraser | C34: Truro | D34: SCO | E34: 97 | F34: 0 | G34: 902 | H34: 0 | I34: 902 | J34: 0+2+0 | K34: 44th | L34: =IF(eVAL(K34)<=L$6,VLOOKUP(eVAL(K34),Multiplier,2)*eVAL(L$3),0) -> 302.6 | N34: 22nd | O34: =IF(eVAL(N34)<=O$6,VLOOKUP(eVAL(N34),Multiplier,2)*eVAL(O$3),0) -> 599.4 | R34: =IF(eVAL(Q34)>0,IF(eVAL(Q34)<=R$6,VLOOKUP(eVAL(Q34),Multiplier,2)*R$3,0),"") -> 
A35: 27 | B35: VAN NIEUWERBURGH, Christian | C35: Shakespeare's Swords | D35: ENG | E35: 96 | F35: 0 | G35: 845.8 | H35: 0 | I35: 845.8 | J35: 0+2+0 | K35: 54th | L35: =IF(eVAL(K35)<=L$6,VLOOKUP(eVAL(K35),Multiplier,2)*eVAL(L$3),0) -> 268.6 | N35: 27th | O35: =IF(eVAL(N35)<=O$6,VLOOKUP(eVAL(N35),Multiplier,2)*eVAL(O$3),0) -> 577.2 | R35: =IF(eVAL(Q35)>0,IF(eVAL(Q35)<=R$6,VLOOKUP(eVAL(Q35),Multiplier,2)*R$3,0),"") -> 
A36: 28 | B36: WILLIAMSON, Andrew | C36: Edinburgh | D36: SCO | E36: 95 | F36: 0 | G36: 835.12 | H36: 0 | I36: 835.12 | J36: 0+2+0 | K36: 60th | L36: =IF(eVAL(K36)<=L$6,VLOOKUP(eVAL(K36),Multiplier,2)*eVAL(L$3),0) -> 248.2 | Q36: 12th | R36: =IF(eVAL(Q36)>0,IF(eVAL(Q36)<=R$6,VLOOKUP(eVAL(Q36),Multiplier,2)*R$3,0),"") -> 586.92
A37: 29 | B37: HOLDSWORTH , George | C37: MX Fencing | D37: ENG | E37: 94 | F37: 0 | G37: 832.48 | H37: 0 | I37: 832.48 | J37: 0+2+0 | K37: 54th | L37: =IF(eVAL(K37)<=L$6,VLOOKUP(eVAL(K37),Multiplier,2)*eVAL(L$3),0) -> 268.6 | N37: 30th | O37: =IF(eVAL(N37)<=O$6,VLOOKUP(eVAL(N37),Multiplier,2)*eVAL(O$3),0) -> 563.88 | R37: =IF(eVAL(Q37)>0,IF(eVAL(Q37)<=R$6,VLOOKUP(eVAL(Q37),Multiplier,2)*R$3,0),"") -> 
A38: 30 | B38: BURTON, George Edward | C38: Bedford | D38: ENG | E38: 96 | F38: 0 | G38: 828.52 | H38: 0 | I38: 828.52 | J38: 0+2+0 | K38: 63rd | L38: =IF(eVAL(K38)<=L$6,VLOOKUP(eVAL(K38),Multiplier,2)*eVAL(L$3),0) -> 238 | N38: 24th | O38: =IF(eVAL(N38)<=O$6,VLOOKUP(eVAL(N38),Multiplier,2)*eVAL(O$3),0) -> 590.52 | R38: =IF(eVAL(Q38)>0,IF(eVAL(Q38)<=R$6,VLOOKUP(eVAL(Q38),Multiplier,2)*R$3,0),"") -> 
A39: 31 | B39: ALDOUS-GRANBY, James | C39: Foyle & Londonderry | D39: NIR | E39: 94 | F39: 0 | G39: 788.02 | H39: 0 | I39: 788.02 | J39: 0+2+0 | N39: 40th | O39: =IF(eVAL(N39)<=O$6,VLOOKUP(eVAL(N39),Multiplier,2)*eVAL(O$3),0) -> 206.46 | Q39: 14th | R39: =IF(eVAL(Q39)>0,IF(eVAL(Q39)<=R$6,VLOOKUP(eVAL(Q39),Multiplier,2)*R$3,0),"") -> 581.56
A40: 32 | B40: POTTER, Nathan | C40: Camden | D40: WAL | E40: 95 | F40: 0 | G40: 787.1 | H40: 0 | I40: 787.1 | J40: 0+3+0 | K40: 71st | L40: =IF(eVAL(K40)<=L$6,VLOOKUP(eVAL(K40),Multiplier,2)*eVAL(L$3),0) -> 0 | N40: 38th | O40: =IF(eVAL(N40)<=O$6,VLOOKUP(eVAL(N40),Multiplier,2)*eVAL(O$3),0) -> 210.9 | Q40: 16th | R40: =IF(eVAL(Q40)>0,IF(eVAL(Q40)<=R$6,VLOOKUP(eVAL(Q40),Multiplier,2)*R$3,0),"") -> 576.2
A41: 33 | B41: HALLIWELL, William | C41: Shakespeare's Swords | D41: ENG | E41: 96 | F41: 0 | G41: 618.24 | H41: 0 | I41: 618.24 | J41: 0+3+0 | K41: 56th | L41: =IF(eVAL(K41)<=L$6,VLOOKUP(eVAL(K41),Multiplier,2)*eVAL(L$3),0) -> 261.8 | N41: 69th | O41: =IF(eVAL(N41)<=O$6,VLOOKUP(eVAL(N41),Multiplier,2)*eVAL(O$3),0) -> 0 | Q41: 24th | R41: =IF(eVAL(Q41)>0,IF(eVAL(Q41)<=R$6,VLOOKUP(eVAL(Q41),Multiplier,2)*R$3,0),"") -> 356.44
A42: 34 | B42: BERNSTEIN, Richard | C42: Millfield | D42: ENG | E42: 96 | F42: 0 | G42: 607.12 | H42: 0 | I42: 607.12 | J42: 0+2+0 | K42: 64th | L42: =IF(eVAL(K42)<=L$6,VLOOKUP(eVAL(K42),Multiplier,2)*eVAL(L$3),0) -> 234.6 | Q42: 18th | R42: =IF(eVAL(Q42)>0,IF(eVAL(Q42)<=R$6,VLOOKUP(eVAL(Q42),Multiplier,2)*R$3,0),"") -> 372.52
A43: 35 | B43: BRAVO, Inoki | C43: Truro | D43: SPA | E43: 94 | F43: 0 | G43: 586.08 | H43: 0 | I43: 586.08 | J43: 0+1+0 | N43: 25th | O43: =IF(eVAL(N43)<=O$6,VLOOKUP(eVAL(N43),Multiplier,2)*eVAL(O$3),0) -> 586.08 | R43: =IF(eVAL(Q43)>0,IF(eVAL(Q43)<=R$6,VLOOKUP(eVAL(Q43),Multiplier,2)*R$3,0),"") -> 
A44: 36 | B44: EDMUNDSON, Jack | C44: South London Swords | D44: ENG | E44: 97 | F44: 0 | G44: 581.64 | H44: 0 | I44: 581.64 | J44: 0+2+0 | K44: 111st | L44: =IF(eVAL(K44)<=L$6,VLOOKUP(eVAL(K44),Multiplier,2)*eVAL(L$3),0) -> 0 | N44: 26th | O44: =IF(eVAL(N44)<=O$6,VLOOKUP(eVAL(N44),Multiplier,2)*eVAL(O$3),0) -> 581.64 | R44: =IF(eVAL(Q44)>0,IF(eVAL(Q44)<=R$6,VLOOKUP(eVAL(Q44),Multiplier,2)*R$3,0),"") -> 
A45: 37 | B45: EDMUNDSON , Sam | C45: Kemnal Tech Coll | D45: ENG | E45: 94 | F45: 0 | G45: 568.32 | H45: 0 | I45: 568.32 | J45: 0+1+0 | N45: 29th | O45: =IF(eVAL(N45)<=O$6,VLOOKUP(eVAL(N45),Multiplier,2)*eVAL(O$3),0) -> 568.32 | R45: =IF(eVAL(Q45)>0,IF(eVAL(Q45)<=R$6,VLOOKUP(eVAL(Q45),Multiplier,2)*R$3,0),"") -> 
A46: 38 | B46: GELLETT, Charlie | C46: MX Fencing | D46: ENG | E46: 96 | F46: 0 | G46: 559.44 | H46: 0 | I46: 559.44 | J46: 0+2+0 | K46: 77th | L46: =IF(eVAL(K46)<=L$6,VLOOKUP(eVAL(K46),Multiplier,2)*eVAL(L$3),0) -> 0 | N46: 31st | O46: =IF(eVAL(N46)<=O$6,VLOOKUP(eVAL(N46),Multiplier,2)*eVAL(O$3),0) -> 559.44 | R46: =IF(eVAL(Q46)>0,IF(eVAL(Q46)<=R$6,VLOOKUP(eVAL(Q46),Multiplier,2)*R$3,0),"") -> 
A47: 39 | B47: SPICER, Jonathan | C47: Sarnia Sword | D47: ENG | E47: 95 | F47: 0 | G47: 555.4 | H47: 0 | I47: 555.4 | J47: 0+3+0 | K47: 79th | L47: =IF(eVAL(K47)<=L$6,VLOOKUP(eVAL(K47),Multiplier,2)*eVAL(L$3),0) -> 0 | N47: 47th | O47: =IF(eVAL(N47)<=O$6,VLOOKUP(eVAL(N47),Multiplier,2)*eVAL(O$3),0) -> 190.92 | Q47: 21st | R47: =IF(eVAL(Q47)>0,IF(eVAL(Q47)<=R$6,VLOOKUP(eVAL(Q47),Multiplier,2)*R$3,0),"") -> 364.48
A48: 40 | B48: JONES, Matthew | C48: Salle Ursa | D48: ENG | E48: 94 | F48: 0 | G48: 555 | H48: 0 | I48: 555 | J48: 0+1+0 | N48: 32nd | O48: =IF(eVAL(N48)<=O$6,VLOOKUP(eVAL(N48),Multiplier,2)*eVAL(O$3),0) -> 555 | R48: =IF(eVAL(Q48)>0,IF(eVAL(Q48)<=R$6,VLOOKUP(eVAL(Q48),Multiplier,2)*R$3,0),"") -> 
A49: 41 | B49: WIDE, Daniel | C49: Shakespeare's Swords | D49: ENG | E49: 93 | F49: 0 | G49: 547.82 | H49: 0 | I49: 547.82 | J49: 0+3+0 | K49: 72nd | L49: =IF(eVAL(K49)<=L$6,VLOOKUP(eVAL(K49),Multiplier,2)*eVAL(L$3),0) -> 0 | N49: 48th | O49: =IF(eVAL(N49)<=O$6,VLOOKUP(eVAL(N49),Multiplier,2)*eVAL(O$3),0) -> 188.7 | Q49: 23rd | R49: =IF(eVAL(Q49)>0,IF(eVAL(Q49)<=R$6,VLOOKUP(eVAL(Q49),Multiplier,2)*R$3,0),"") -> 359.12
A50: 42 | B50: HUDSON , Matthew | C50: Room 1 on 1 | D50: ENG | E50: 93 | F50: 0 | G50: 512.32 | H50: 0 | I50: 512.32 | J50: 0+3+0 | K50: 45th | L50: =IF(eVAL(K50)<=L$6,VLOOKUP(eVAL(K50),Multiplier,2)*eVAL(L$3),0) -> 299.2 | N50: 37th | O50: =IF(eVAL(N50)<=O$6,VLOOKUP(eVAL(N50),Multiplier,2)*eVAL(O$3),0) -> 213.12 | Q50: 30th | R50: =IF(eVAL(Q50)>0,IF(eVAL(Q50)<=R$6,VLOOKUP(eVAL(Q50),Multiplier,2)*R$3,0),"") -> 0
A51: 43 | B51: DACEY, Simon | C51: MX Fencing | D51: ENG | E51: 97 | F51: 0 | G51: 460.14 | H51: 0 | I51: 460.14 | J51: 0+2+0 | K51: 61st | L51: =IF(eVAL(K51)<=L$6,VLOOKUP(eVAL(K51),Multiplier,2)*eVAL(L$3),0) -> 244.8 | N51: 36th | O51: =IF(eVAL(N51)<=O$6,VLOOKUP(eVAL(N51),Multiplier,2)*eVAL(O$3),0) -> 215.34 | R51: =IF(eVAL(Q51)>0,IF(eVAL(Q51)<=R$6,VLOOKUP(eVAL(Q51),Multiplier,2)*R$3,0),"") -> 
A52: 44 | B52: CRUIKSHANK, Adam | C52: Wallace | D52: SCO | E52: 95 | F52: 0 | G52: 369.84 | H52: 0 | I52: 369.84 | J52: 0+1+0 | Q52: 19th | R52: =IF(eVAL(Q52)>0,IF(eVAL(Q52)<=R$6,VLOOKUP(eVAL(Q52),Multiplier,2)*R$3,0),"") -> 369.84
A53: 45 | B53: PEARSON, Alex | C53: Salle Rollo | D53: SCO | E53: 94 | F53: 0 | G53: 312.8 | H53: 0 | I53: 312.8 | J53: 0+1+0 | K53: 41st | L53: =IF(eVAL(K53)<=L$6,VLOOKUP(eVAL(K53),Multiplier,2)*eVAL(L$3),0) -> 312.8 | R53: =IF(eVAL(Q53)>0,IF(eVAL(Q53)<=R$6,VLOOKUP(eVAL(Q53),Multiplier,2)*R$3,0),"") -> 
A54: 46 | B54: ESTEVES , Nuno | C54: Camden | D54: ENG | E54: 95 | F54: 0 | G54: 222 | H54: 0 | I54: 222 | J54: 0+2+0 | K54: 70th | L54: =IF(eVAL(K54)<=L$6,VLOOKUP(eVAL(K54),Multiplier,2)*eVAL(L$3),0) -> 0 | N54: 33rd | O54: =IF(eVAL(N54)<=O$6,VLOOKUP(eVAL(N54),Multiplier,2)*eVAL(O$3),0) -> 222 | R54: =IF(eVAL(Q54)>0,IF(eVAL(Q54)<=R$6,VLOOKUP(eVAL(Q54),Multiplier,2)*R$3,0),"") -> 
A55: 47 | B55: WALLIS, Jack | C55: Room One on One | D55: ENG | E55: 95 | F55: 0 | G55: 222 | H55: 0 | I55: 222 | J55: 0+3+0 | K55: 98th | L55: =IF(eVAL(K55)<=L$6,VLOOKUP(eVAL(K55),Multiplier,2)*eVAL(L$3),0) -> 0 | N55: 33rd | O55: =IF(eVAL(N55)<=O$6,VLOOKUP(eVAL(N55),Multiplier,2)*eVAL(O$3),0) -> 222 | Q55: 32nd | R55: =IF(eVAL(Q55)>0,IF(eVAL(Q55)<=R$6,VLOOKUP(eVAL(Q55),Multiplier,2)*R$3,0),"") -> 0
A56: 48 | B56: MOORE, William | C56: Camden | D56: ENG | E56: 95 | F56: 0 | G56: 219.78 | H56: 0 | I56: 219.78 | J56: 0+1+0 | N56: 34th | O56: =IF(eVAL(N56)<=O$6,VLOOKUP(eVAL(N56),Multiplier,2)*eVAL(O$3),0) -> 219.78 | R56: =IF(eVAL(Q56)>0,IF(eVAL(Q56)<=R$6,VLOOKUP(eVAL(Q56),Multiplier,2)*R$3,0),"") -> 
A57: 49 | B57: BERGNE, Achille | C57: Escrime | D57: ENG | E57: 98 | F57: 0 | G57: 208.68 | H57: 0 | I57: 208.68 | J57: 0+1+0 | N57: 39th | O57: =IF(eVAL(N57)<=O$6,VLOOKUP(eVAL(N57),Multiplier,2)*eVAL(O$3),0) -> 208.68 | R57: =IF(eVAL(Q57)>0,IF(eVAL(Q57)<=R$6,VLOOKUP(eVAL(Q57),Multiplier,2)*R$3,0),"") -> 
A58: 50 | B58: MINKLEY, Rowan | C58: Bath | D58: ENG | E58: 95 | F58: 0 | G58: 204.24 | H58: 0 | I58: 204.24 | J58: 0+3+0 | K58: 84th | L58: =IF(eVAL(K58)<=L$6,VLOOKUP(eVAL(K58),Multiplier,2)*eVAL(L$3),0) -> 0 | N58: 41st | O58: =IF(eVAL(N58)<=O$6,VLOOKUP(eVAL(N58),Multiplier,2)*eVAL(O$3),0) -> 204.24 | Q58: 26th | R58: =IF(eVAL(Q58)>0,IF(eVAL(Q58)<=R$6,VLOOKUP(eVAL(Q58),Multiplier,2)*R$3,0),"") -> 0
A59: 51 | B59: BOTLEY, Pelham | C59: South London Swords | D59: ENG | E59: 96 | F59: 0 | G59: 202.02 | H59: 0 | I59: 202.02 | J59: 0+2+0 | K59: 88th | L59: =IF(eVAL(K59)<=L$6,VLOOKUP(eVAL(K59),Multiplier,2)*eVAL(L$3),0) -> 0 | N59: 42nd | O59: =IF(eVAL(N59)<=O$6,VLOOKUP(eVAL(N59),Multiplier,2)*eVAL(O$3),0) -> 202.02 | R59: =IF(eVAL(Q59)>0,IF(eVAL(Q59)<=R$6,VLOOKUP(eVAL(Q59),Multiplier,2)*R$3,0),"") -> 
A60: 52 | B60: HERROD , Pierse | C60: Shakespeare's Swords | D60: ENG | E60: 95 | F60: 0 | G60: 199.8 | H60: 0 | I60: 199.8 | J60: 0+3+0 | K60: 74th | L60: =IF(eVAL(K60)<=L$6,VLOOKUP(eVAL(K60),Multiplier,2)*eVAL(L$3),0) -> 0 | N60: 43rd | O60: =IF(eVAL(N60)<=O$6,VLOOKUP(eVAL(N60),Multiplier,2)*eVAL(O$3),0) -> 199.8 | Q60: 27th | R60: =IF(eVAL(Q60)>0,IF(eVAL(Q60)<=R$6,VLOOKUP(eVAL(Q60),Multiplier,2)*R$3,0),"") -> 0
A61: 53 | B61: AMSALEM, Eden | C61: Camden | D61: ENG | E61: 98 | F61: 0 | G61: 197.58 | H61: 0 | I61: 197.58 | J61: 0+1+0 | N61: 44th | O61: =IF(eVAL(N61)<=O$6,VLOOKUP(eVAL(N61),Multiplier,2)*eVAL(O$3),0) -> 197.58 | R61: =IF(eVAL(Q61)>0,IF(eVAL(Q61)<=R$6,VLOOKUP(eVAL(Q61),Multiplier,2)*R$3,0),"") -> 
A62: 54 | B62: CLOUGHLEY , Connor | C62: West Fife | D62: SCO | E62: 95 | F62: 0 | G62: 195.36 | H62: 0 | I62: 195.36 | J62: 0+2+0 | K62: 68th | L62: =IF(eVAL(K62)<=L$6,VLOOKUP(eVAL(K62),Multiplier,2)*eVAL(L$3),0) -> 0 | N62: 45th | O62: =IF(eVAL(N62)<=O$6,VLOOKUP(eVAL(N62),Multiplier,2)*eVAL(O$3),0) -> 195.36 | R62: =IF(eVAL(Q62)>0,IF(eVAL(Q62)<=R$6,VLOOKUP(eVAL(Q62),Multiplier,2)*R$3,0),"") -> 
A63: 55 | B63: REDBURN, Sam | C63: MX Fencing | D63: ENG | E63: 97 | F63: 0 | G63: 193.14 | H63: 0 | I63: 193.14 | J63: 0+2+0 | K63: 87th | L63: =IF(eVAL(K63)<=L$6,VLOOKUP(eVAL(K63),Multiplier,2)*eVAL(L$3),0) -> 0 | N63: 46th | O63: =IF(eVAL(N63)<=O$6,VLOOKUP(eVAL(N63),Multiplier,2)*eVAL(O$3),0) -> 193.14 | R63: =IF(eVAL(Q63)>0,IF(eVAL(Q63)<=R$6,VLOOKUP(eVAL(Q63),Multiplier,2)*R$3,0),"") -> 
A64: 56 | B64: LAWRENCE , Grant | C64: Bedford | D64: ENG | E64: 96 | F64: 0 | G64: 186.48 | H64: 0 | I64: 186.48 | J64: 0+2+0 | K64: 92nd | L64: =IF(eVAL(K64)<=L$6,VLOOKUP(eVAL(K64),Multiplier,2)*eVAL(L$3),0) -> 0 | N64: 49th | O64: =IF(eVAL(N64)<=O$6,VLOOKUP(eVAL(N64),Multiplier,2)*eVAL(O$3),0) -> 186.48 | R64: =IF(eVAL(Q64)>0,IF(eVAL(Q64)<=R$6,VLOOKUP(eVAL(Q64),Multiplier,2)*R$3,0),"") -> 
A65: 57 | B65: KWAN, Wai Yu | C65: Shakespeare's Swords | D65: ENG | E65: 93 | F65: 0 | G65: 186.48 | H65: 0 | I65: 186.48 | J65: 0+3+0 | K65: 95th | L65: =IF(eVAL(K65)<=L$6,VLOOKUP(eVAL(K65),Multiplier,2)*eVAL(L$3),0) -> 0 | N65: 49th | O65: =IF(eVAL(N65)<=O$6,VLOOKUP(eVAL(N65),Multiplier,2)*eVAL(O$3),0) -> 186.48 | Q65: 31st | R65: =IF(eVAL(Q65)>0,IF(eVAL(Q65)<=R$6,VLOOKUP(eVAL(Q65),Multiplier,2)*R$3,0),"") -> 0
A66: 58 | B66: HOWES, Nicholas | C66: South London Swords | D66: ENG | E66: 94 | F66: 0 | G66: 182.04 | H66: 0 | I66: 182.04 | J66: 0+2+0 | K66: 96th | L66: =IF(eVAL(K66)<=L$6,VLOOKUP(eVAL(K66),Multiplier,2)*eVAL(L$3),0) -> 0 | N66: 51st | O66: =IF(eVAL(N66)<=O$6,VLOOKUP(eVAL(N66),Multiplier,2)*eVAL(O$3),0) -> 182.04 | R66: =IF(eVAL(Q66)>0,IF(eVAL(Q66)<=R$6,VLOOKUP(eVAL(Q66),Multiplier,2)*R$3,0),"") -> 
A67: 59 | B67: MARTINEAU, Alexis | C67: Escrime | D67: ENG | E67: 98 | F67: 0 | G67: 179.82 | H67: 0 | I67: 179.82 | J67: 0+1+0 | N67: 52nd | O67: =IF(eVAL(N67)<=O$6,VLOOKUP(eVAL(N67),Multiplier,2)*eVAL(O$3),0) -> 179.82 | R67: =IF(eVAL(Q67)>0,IF(eVAL(Q67)<=R$6,VLOOKUP(eVAL(Q67),Multiplier,2)*R$3,0),"") -> 
A68: 60 | B68: JAMES, William | C68: Ddraig Wern | D68: WAL | E68: 95 | F68: 0 | G68: 177.6 | H68: 0 | I68: 177.6 | J68: 0+2+0 | K68: 76th | L68: =IF(eVAL(K68)<=L$6,VLOOKUP(eVAL(K68),Multiplier,2)*eVAL(L$3),0) -> 0 | N68: 53rd | O68: =IF(eVAL(N68)<=O$6,VLOOKUP(eVAL(N68),Multiplier,2)*eVAL(O$3),0) -> 177.6 | R68: =IF(eVAL(Q68)>0,IF(eVAL(Q68)<=R$6,VLOOKUP(eVAL(Q68),Multiplier,2)*R$3,0),"") -> 
A69: 61 | B69: MORRESI, Matteo | C69: Escrime | D69: ENG | E69: 98 | F69: 0 | G69: 175.38 | H69: 0 | I69: 175.38 | J69: 0+1+0 | N69: 54th | O69: =IF(eVAL(N69)<=O$6,VLOOKUP(eVAL(N69),Multiplier,2)*eVAL(O$3),0) -> 175.38 | R69: =IF(eVAL(Q69)>0,IF(eVAL(Q69)<=R$6,VLOOKUP(eVAL(Q69),Multiplier,2)*R$3,0),"") -> 
A70: 62 | B70: HYDE, Matthew | C70: Strathallan | D70: SCO | E70: 98 | F70: 0 | G70: 173.16 | H70: 0 | I70: 173.16 | J70: 0+1+0 | N70: 55th | O70: =IF(eVAL(N70)<=O$6,VLOOKUP(eVAL(N70),Multiplier,2)*eVAL(O$3),0) -> 173.16 | R70: =IF(eVAL(Q70)>0,IF(eVAL(Q70)<=R$6,VLOOKUP(eVAL(Q70),Multiplier,2)*R$3,0),"") -> 
A71: 63 | B71: LINDLEY, Thomas | C71: Rivington Park | D71: ENG | E71: 97 | F71: 0 | G71: 170.94 | H71: 0 | I71: 170.94 | J71: 0+2+0 | K71: 86th | L71: =IF(eVAL(K71)<=L$6,VLOOKUP(eVAL(K71),Multiplier,2)*eVAL(L$3),0) -> 0 | N71: 56th | O71: =IF(eVAL(N71)<=O$6,VLOOKUP(eVAL(N71),Multiplier,2)*eVAL(O$3),0) -> 170.94 | R71: =IF(eVAL(Q71)>0,IF(eVAL(Q71)<=R$6,VLOOKUP(eVAL(Q71),Multiplier,2)*R$3,0),"") -> 
A72: 64 | B72: ALLEN, Joshua | C72: Camden | D72: ENG | E72: 94 | F72: 0 | G72: 0 | H72: 0 | I72: 0 | J72: 0+1+0 | N72: 59th | O72: =IF(eVAL(N72)<=O$6,VLOOKUP(eVAL(N72),Multiplier,2)*eVAL(O$3),0) -> 0 | R72: =IF(eVAL(Q72)>0,IF(eVAL(Q72)<=R$6,VLOOKUP(eVAL(Q72),Multiplier,2)*R$3,0),"") -> 
A73: 64 | B73: BEAZLEY, James | C73: Abingdon School | D73: ENG | E73: 97 | F73: 0 | G73: 0 | H73: 0 | I73: 0 | J73: 0+2+0 | K73: 97th | L73: =IF(eVAL(K73)<=L$6,VLOOKUP(eVAL(K73),Multiplier,2)*eVAL(L$3),0) -> 0 | N73: 70th | O73: =IF(eVAL(N73)<=O$6,VLOOKUP(eVAL(N73),Multiplier,2)*eVAL(O$3),0) -> 0 | R73: =IF(eVAL(Q73)>0,IF(eVAL(Q73)<=R$6,VLOOKUP(eVAL(Q73),Multiplier,2)*R$3,0),"") -> 
A74: 64 | B74: BRITTON, Gregory | C74: Chillwell Blades | D74: ENG | E74: 93 | F74: 0 | G74: 0 | H74: 0 | I74: 0 | J74: 0+1+0 | Q74: 29th | R74: =IF(eVAL(Q74)>0,IF(eVAL(Q74)<=R$6,VLOOKUP(eVAL(Q74),Multiplier,2)*R$3,0),"") -> 0
A75: 64 | B75: COTTAM, James | C75: Room 1 on 1 | D75: ENG | E75: 95 | F75: 0 | G75: 0 | H75: 0 | I75: 0 | J75: 0+1+0 | N75: 66th | O75: =IF(eVAL(N75)<=O$6,VLOOKUP(eVAL(N75),Multiplier,2)*eVAL(O$3),0) -> 0 | R75: =IF(eVAL(Q75)>0,IF(eVAL(Q75)<=R$6,VLOOKUP(eVAL(Q75),Multiplier,2)*R$3,0),"") -> 
A76: 64 | B76: COWELL, Matthew | C76: Bridgend | D76: WAL | E76: 98 | F76: 0 | G76: 0 | H76: 0 | I76: 0 | J76: 0+1+0 | N76: 76th | O76: =IF(eVAL(N76)<=O$6,VLOOKUP(eVAL(N76),Multiplier,2)*eVAL(O$3),0) -> 0 | R76: =IF(eVAL(Q76)>0,IF(eVAL(Q76)<=R$6,VLOOKUP(eVAL(Q76),Multiplier,2)*R$3,0),"") -> 
A77: 64 | B77: DUMONT, Ben | C77: Guernsey | D77: GGY | F77: 0 | G77: 0 | H77: 0 | I77: 0 | J77: 0+1+0 | N77: 67th | O77: =IF(eVAL(N77)<=O$6,VLOOKUP(eVAL(N77),Multiplier,2)*eVAL(O$3),0) -> 0 | R77: =IF(eVAL(Q77)>0,IF(eVAL(Q77)<=R$6,VLOOKUP(eVAL(Q77),Multiplier,2)*R$3,0),"") -> 
A78: 64 | B78: FLORENCE , Isaac | C78: Ddraig Wern | D78: WAL | E78: 95 | F78: 0 | G78: 0 | H78: 0 | I78: 0 | J78: 0+1+0 | N78: 62nd | O78: =IF(eVAL(N78)<=O$6,VLOOKUP(eVAL(N78),Multiplier,2)*eVAL(O$3),0) -> 0 | R78: =IF(eVAL(Q78)>0,IF(eVAL(Q78)<=R$6,VLOOKUP(eVAL(Q78),Multiplier,2)*R$3,0),"") -> 
A79: 64 | B79: FOTHERBY James | C79: Abingdon School | D79: ENG | E79: 97 | F79: 0 | G79: 0 | H79: 0 | I79: 0 | J79: 0+2+0 | K79: 105th | L79: =IF(eVAL(K79)<=L$6,VLOOKUP(eVAL(K79),Multiplier,2)*eVAL(L$3),0) -> 0 | N79: 74th | O79: =IF(eVAL(N79)<=O$6,VLOOKUP(eVAL(N79),Multiplier,2)*eVAL(O$3),0) -> 0 | R79: =IF(eVAL(Q79)>0,IF(eVAL(Q79)<=R$6,VLOOKUP(eVAL(Q79),Multiplier,2)*R$3,0),"") -> 
A80: 64 | B80: HAWKINS, Philip | C80: Brentwood School | D80: ENG | E80: 96 | F80: 0 | G80: 0 | H80: 0 | I80: 0 | J80: 0+1+0 | N80: 65th | O80: =IF(eVAL(N80)<=O$6,VLOOKUP(eVAL(N80),Multiplier,2)*eVAL(O$3),0) -> 0 | R80: =IF(eVAL(Q80)>0,IF(eVAL(Q80)<=R$6,VLOOKUP(eVAL(Q80),Multiplier,2)*R$3,0),"") -> 
A81: 64 | B81: HUNTER, Matthew | C81: Shakespeare's Swords | D81: ENG | E81: 96 | F81: 0 | G81: 0 | H81: 0 | I81: 0 | J81: 0+2+0 | K81: 94th | L81: =IF(eVAL(K81)<=L$6,VLOOKUP(eVAL(K81),Multiplier,2)*eVAL(L$3),0) -> 0 | N81: 68th | O81: =IF(eVAL(N81)<=O$6,VLOOKUP(eVAL(N81),Multiplier,2)*eVAL(O$3),0) -> 0 | R81: =IF(eVAL(Q81)>0,IF(eVAL(Q81)<=R$6,VLOOKUP(eVAL(Q81),Multiplier,2)*R$3,0),"") -> 
A82: 64 | B82: JENSEN, Adam | C82: Brentwood School | D82: ENG | E82: 96 | F82: 0 | G82: 0 | H82: 0 | I82: 0 | J82: 0+1+0 | N82: 58th | O82: =IF(eVAL(N82)<=O$6,VLOOKUP(eVAL(N82),Multiplier,2)*eVAL(O$3),0) -> 0 | R82: =IF(eVAL(Q82)>0,IF(eVAL(Q82)<=R$6,VLOOKUP(eVAL(Q82),Multiplier,2)*R$3,0),"") -> 
A83: 64 | B83: JONES, Dylan | C83: Vale | D83: ENG | E83: 98 | F83: 0 | G83: 0 | H83: 0 | I83: 0 | J83: 0+2+0 | K83: 104th | L83: =IF(eVAL(K83)<=L$6,VLOOKUP(eVAL(K83),Multiplier,2)*eVAL(L$3),0) -> 0 | N83: 77th | O83: =IF(eVAL(N83)<=O$6,VLOOKUP(eVAL(N83),Multiplier,2)*eVAL(O$3),0) -> 0 | R83: =IF(eVAL(Q83)>0,IF(eVAL(Q83)<=R$6,VLOOKUP(eVAL(Q83),Multiplier,2)*R$3,0),"") -> 
A84: 64 | B84: LINDSAY, Christian | C84: Escrime | D84: ENG | E84: 98 | F84: 0 | G84: 0 | H84: 0 | I84: 0 | J84: 0+1+0 | N84: 64th | O84: =IF(eVAL(N84)<=O$6,VLOOKUP(eVAL(N84),Multiplier,2)*eVAL(O$3),0) -> 0 | R84: =IF(eVAL(Q84)>0,IF(eVAL(Q84)<=R$6,VLOOKUP(eVAL(Q84),Multiplier,2)*R$3,0),"") -> 
A85: 64 | B85: MANSON, Ross | C85: Wallace Fencing | D85: SCO | E85: 97 | F85: 0 | G85: 0 | H85: 0 | I85: 0 | J85: 0+3+0 | K85: 84th | L85: =IF(eVAL(K85)<=L$6,VLOOKUP(eVAL(K85),Multiplier,2)*eVAL(L$3),0) -> 0 | N85: 72nd | O85: =IF(eVAL(N85)<=O$6,VLOOKUP(eVAL(N85),Multiplier,2)*eVAL(O$3),0) -> 0 | Q85: 28th | R85: =IF(eVAL(Q85)>0,IF(eVAL(Q85)<=R$6,VLOOKUP(eVAL(Q85),Multiplier,2)*R$3,0),"") -> 0
A86: 64 | B86: MOORE, Christopher | C86: Shakespeare's Swords | D86: ENG | E86: 96 | F86: 0 | G86: 0 | H86: 0 | I86: 0 | J86: 0+1+0 | K86: 91st | L86: =IF(eVAL(K86)<=L$6,VLOOKUP(eVAL(K86),Multiplier,2)*eVAL(L$3),0) -> 0 | R86: =IF(eVAL(Q86)>0,IF(eVAL(Q86)<=R$6,VLOOKUP(eVAL(Q86),Multiplier,2)*R$3,0),"") -> 
A87: 64 | B87: NELSON, Jordan | C87: South London Swords | D87: ENG | E87: 96 | F87: 0 | G87: 0 | H87: 0 | I87: 0 | J87: 0+1+0 | N87: 60th | O87: =IF(eVAL(N87)<=O$6,VLOOKUP(eVAL(N87),Multiplier,2)*eVAL(O$3),0) -> 0 | R87: =IF(eVAL(Q87)>0,IF(eVAL(Q87)<=R$6,VLOOKUP(eVAL(Q87),Multiplier,2)*R$3,0),"") -> 
A88: 64 | B88: RAY, Daniel | C88: Guernsey | D88: GGY | E88: 98 | F88: 0 | G88: 0 | H88: 0 | I88: 0 | J88: 0+1+0 | N88: 72nd | O88: =IF(eVAL(N88)<=O$6,VLOOKUP(eVAL(N88),Multiplier,2)*eVAL(O$3),0) -> 0 | R88: =IF(eVAL(Q88)>0,IF(eVAL(Q88)<=R$6,VLOOKUP(eVAL(Q88),Multiplier,2)*R$3,0),"") -> 
A89: 64 | B89: ROONEY, Samuel | C89: Escrime | D89: ENG | E89: 99 | F89: 0 | G89: 0 | H89: 0 | I89: 0 | J89: 0+1+0 | N89: 63rd | O89: =IF(eVAL(N89)<=O$6,VLOOKUP(eVAL(N89),Multiplier,2)*eVAL(O$3),0) -> 0 | R89: =IF(eVAL(Q89)>0,IF(eVAL(Q89)<=R$6,VLOOKUP(eVAL(Q89),Multiplier,2)*R$3,0),"") -> 
A90: 64 | B90: RUSSEN, Matthew | C90: Brentwood School | D90: ENG | E90: 96 | F90: 0 | G90: 0 | H90: 0 | I90: 0 | J90: 0+1+0 | N90: 61st | O90: =IF(eVAL(N90)<=O$6,VLOOKUP(eVAL(N90),Multiplier,2)*eVAL(O$3),0) -> 0 | R90: =IF(eVAL(Q90)>0,IF(eVAL(Q90)<=R$6,VLOOKUP(eVAL(Q90),Multiplier,2)*R$3,0),"") -> 
A91: 64 | B91: VIGAR, Harry | C91: Millfield | D91: ENG | F91: 0 | G91: 0 | H91: 0 | I91: 0 | J91: 0+1+0 | Q91: 33rd | R91: =IF(eVAL(Q91)>0,IF(eVAL(Q91)<=R$6,VLOOKUP(eVAL(Q91),Multiplier,2)*R$3,0),"") -> 0
A92: 64 | B92: WALLACE, Greg | C92: Bedford | D92: ENG | E92: 94 | F92: 0 | G92: 0 | H92: 0 | I92: 0 | J92: 0+1+0 | N92: 71st | O92: =IF(eVAL(N92)<=O$6,VLOOKUP(eVAL(N92),Multiplier,2)*eVAL(O$3),0) -> 0 | R92: =IF(eVAL(Q92)>0,IF(eVAL(Q92)<=R$6,VLOOKUP(eVAL(Q92),Multiplier,2)*R$3,0),"") -> 
A93: 64 | B93: WATSON, Caleb | C93: South London Swords | D93: ENG | E93: 98 | F93: 0 | G93: 0 | H93: 0 | I93: 0 | J93: 0+1+0 | N93: 75th | O93: =IF(eVAL(N93)<=O$6,VLOOKUP(eVAL(N93),Multiplier,2)*eVAL(O$3),0) -> 0 | R93: =IF(eVAL(Q93)>0,IF(eVAL(Q93)<=R$6,VLOOKUP(eVAL(Q93),Multiplier,2)*R$3,0),"") -> 
A94: 64 | B94: WILSON, Calum | C94: Shakespeare's Swords | D94: ENG | E94: 94 | F94: 0 | G94: 0 | H94: 0 | I94: 0 | J94: 0+1+0 | K94: 99th | L94: =IF(eVAL(K94)<=L$6,VLOOKUP(eVAL(K94),Multiplier,2)*eVAL(L$3),0) -> 0 | R94: =IF(eVAL(Q94)>0,IF(eVAL(Q94)<=R$6,VLOOKUP(eVAL(Q94),Multiplier,2)*R$3,0),"") -> 
A95: 999 | B95: AHEARNE , Niall | C95: Espada | D95: ENG | E95: 94 | F95: 0 | G95: 0 | H95: 0 | I95: 0 | J95: 0+0+0
A96: 999 | B96: ARTESI, Fabio | C96: Camden | D96: ENG | E96: 94 | F96: 0 | G96: 0 | H96: 0 | I96: 0 | J96: 0+0+0
A97: 999 | B97: ARTESI, Gianfranco | C97: Camden | D97: ENG | E97: 94 | F97: 0 | G97: 0 | H97: 0 | I97: 0 | J97: 0+0+0
A98: 999 | B98: AU, Jordon | C98: Espada | D98: ENG | E98: 94 | F98: 0 | G98: 0 | H98: 0 | I98: 0 | J98: 0+0+0
A99: 999 | B99: AUBERT, Miles | C99: Brentwood | D99: ENG | E99: 94 | F99: 0 | G99: 0 | H99: 0 | I99: 0 | J99: 0+0+0
A100: 999 | B100: BEELEY , Jacques | C100: Ashtom Thameside | D100: ENG | E100: 95 | F100: 0 | G100: 0 | H100: 0 | I100: 0 | J100: 0+0+0
A101: 999 | B101: BLAYLOCK, Christopher | C101: Camden | D101: ENG | E101: 95 | F101: 0 | G101: 0 | H101: 0 | I101: 0 | J101: 0+0+0
A102: 999 | B102: BOUGOURD , Joshua | C102: Salle 101 | D102: ENG | E102: 93 | F102: 0 | G102: 0 | H102: 0 | I102: 0 | J102: 0+0+0
A103: 999 | B103: BOYCOTT-OWEN, Mason | C103: Skipton | D103: ENG | E103: 95 | F103: 0 | G103: 0 | H103: 0 | I103: 0 | J103: 0+0+0
A104: 999 | B104: BROWN, Alex | C104: Brentwood | D104: ENG | E104: 93 | F104: 0 | G104: 0 | H104: 0 | I104: 0 | J104: 0+0+0
A105: 999 | B105: BUSHELL, Harry | C105: Truro | D105: ENG | E105: 95 | F105: 0 | G105: 0 | H105: 0 | I105: 0 | J105: 0+0+0
A106: 999 | B106: BYRNE, Kieran | C106: Tameside Sabre | D106: ENG | E106: 94 | F106: 0 | G106: 0 | H106: 0 | I106: 0 | J106: 0+0+0
A107: 999 | B107: CAVACIUTI , Nicholas | C107: Shakespeare's Swords | D107: ENG | E107: 94 | F107: 0 | G107: 0 | H107: 0 | I107: 0 | J107: 0+0+0
A108: 999 | B108: CONNOLLY, David | C108: Foyle & Londonderry | D108: NIR | E108: 94 | F108: 0 | G108: 0 | H108: 0 | I108: 0 | J108: 0+0+0
A109: 999 | B109: CRAIG, Douglas | C109: Room 1 on 1 | D109: ENG | E109: 95 | F109: 0 | G109: 0 | H109: 0 | I109: 0 | J109: 0+0+0
A110: 999 | B110: DAULMAN, Harry | C110: MX | D110: ENG | E110: 95 | F110: 0 | G110: 0 | H110: 0 | I110: 0 | J110: 0+0+0
A111: 999 | B111: DE LANDRO, Mario | C111: Edinburgh FC | D111: SCO | E111: 94 | F111: 0 | G111: 0 | H111: 0 | I111: 0 | J111: 0+0+0
A112: 999 | B112: DUGGAN, Matthew | C112: Cressy | D112: ENG | E112: 95 | F112: 0 | G112: 0 | H112: 0 | I112: 0 | J112: 0+0+0
A113: 999 | B113: DUNTON, Andrew | C113: Edinburgh | D113: SCO | E113: 93 | F113: 0 | G113: 0 | H113: 0 | I113: 0 | J113: 0+0+0
A114: 999 | B114: DZITKO , Michal | C114: Bedford | D114: ENG | E114: 95 | F114: 0 | G114: 0 | H114: 0 | I114: 0 | J114: 0+0+0
A115: 999 | B115: FIRTH, James | C115: Room 101 | D115: ENG | E115: 94 | F115: 0 | G115: 0 | H115: 0 | I115: 0 | J115: 0+0+0
A116: 999 | B116: HAGGETT, Jordan | C116: Bakewell | D116: ENG | E116: 95 | F116: 0 | G116: 0 | H116: 0 | I116: 0 | J116: 0+0+0
A117: 999 | B117: HERING , Michael | C117: NLSC | D117: SCO | E117: 93 | F117: 0 | G117: 0 | H117: 0 | I117: 0 | J117: 0+0+0
A118: 999 | B118: HOUGH, Rory | C118: Room 1 on 1 | D118: ENG | E118: 95 | F118: 0 | G118: 0 | H118: 0 | I118: 0 | J118: 0+0+0
A119: 999 | B119: HUMFRESS, Alex | C119: Shakespeare's Swords | D119: ENG | E119: 93 | F119: 0 | G119: 0 | H119: 0 | I119: 0 | J119: 0+0+0
A120: 999 | B120: KAR, Hamza | C120: Foyle & Londonderry | D120: NIR | E120: 94 | F120: 0 | G120: 0 | H120: 0 | I120: 0 | J120: 0+0+0
A121: 999 | B121: KENNOWAY , James | C121: Millfield | D121: ENG | E121: 95 | F121: 0 | G121: 0 | H121: 0 | I121: 0 | J121: 0+0+0
A122: 999 | B122: KEOGAN, Jack | C122: Banbury | D122: ENG | E122: 94 | F122: 0 | G122: 0 | H122: 0 | I122: 0 | J122: 0+0+0
A123: 999 | B123: KIM, Edward | C123: MX Fencing | D123: ENG | E123: 94 | F123: 0 | G123: 0 | H123: 0 | I123: 0 | J123: 0+0+0
A124: 999 | B124: LONDON, James | C124: Bolton | D124: ENG | E124: 94 | F124: 0 | G124: 0 | H124: 0 | I124: 0 | J124: 0+0+0
A125: 999 | B125: LOVEDAY, Emile | C125: Escrime Academy | D125: ENG | E125: 95 | F125: 0 | G125: 0 | H125: 0 | I125: 0 | J125: 0+0+0
A126: 999 | B126: MAGEE, Richard | C126: Foyle & Londonderry | D126: NIR | E126: 95 | F126: 0 | G126: 0 | H126: 0 | I126: 0 | J126: 0+0+0
A127: 999 | B127: MCCOURT, Michael | C127: Wallace Fencing | D127: SCO | E127: 94 | F127: 0 | G127: 0 | H127: 0 | I127: 0 | J127: 0+0+0
A128: 999 | B128: MCGUCKIN , Ben | C128: Lazlos | D128: ENG | E128: 95 | F128: 0 | G128: 0 | H128: 0 | I128: 0 | J128: 0+0+0
A129: 999 | B129: MCLEOD, Michael | C129: Taunton | D129: ENG | E129: 93 | F129: 0 | G129: 0 | H129: 0 | I129: 0 | J129: 0+0+0
A130: 999 | B130: MCPHERSON , Robert | C130: Truro | D130: ENG | E130: 94 | F130: 0 | G130: 0 | H130: 0 | I130: 0 | J130: 0+0+0
A131: 999 | B131: MILLER, Harry | C131: Salle 101 | D131: ENG | E131: 93 | F131: 0 | G131: 0 | H131: 0 | I131: 0 | J131: 0+0+0
A132: 999 | B132: MILNER, Luke | C132: Sarnia Sword | D132: ENG | E132: 94 | F132: 0 | G132: 0 | H132: 0 | I132: 0 | J132: 0+0+0
A133: 999 | B133: MORRIS, Sam | C133: Hymers College | D133: ENG | E133: 94 | F133: 0 | G133: 0 | H133: 0 | I133: 0 | J133: 0+0+0
A134: 999 | B134: MOUNTFORD, Jo | C134: Riding Sabre | D134: ENG | E134: 93 | F134: 0 | G134: 0 | H134: 0 | I134: 0 | J134: 0+0+0
A135: 999 | B135: PEARSON, Chris | C135: Salle Rollo | D135: SCO | E135: 97 | F135: 0 | G135: 0 | H135: 0 | I135: 0 | J135: 0+0+0
A136: 999 | B136: PENCHEV , Daniel | C136: City | D136: ENG | E136: 95 | F136: 0 | G136: 0 | H136: 0 | I136: 0 | J136: 0+0+0
A137: 999 | B137: POTTER, James (CADS) | C137: CADS | D137: ENG | E137: 94 | F137: 0 | G137: 0 | H137: 0 | I137: 0 | J137: 0+0+0
A138: 999 | B138: QUIGLEY , Barry | C138: Foyle & Londonderry | D138: NIR | E138: 94 | F138: 0 | G138: 0 | H138: 0 | I138: 0 | J138: 0+0+0
A139: 999 | B139: RADLEY, Edmund | D139: ENG | E139: 95 | F139: 0 | G139: 0 | H139: 0 | I139: 0 | J139: 0+0+0
A140: 999 | B140: RAMSAY, Waldo | C140: Camden | D140: ENG | E140: 94 | F140: 0 | G140: 0 | H140: 0 | I140: 0 | J140: 0+0+0
A141: 999 | B141: REID, Adam | C141: Foyle & Londonderry | D141: NIR | E141: 95 | F141: 0 | G141: 0 | H141: 0 | I141: 0 | J141: 0+0+0
A142: 999 | B142: REID, Laurence | C142: NLSC | D142: ENG | E142: 93 | F142: 0 | G142: 0 | H142: 0 | I142: 0 | J142: 0+0+0
A143: 999 | B143: ROBERTS, Rupert | D143: ENG | E143: 94 | F143: 0 | G143: 0 | H143: 0 | I143: 0 | J143: 0+0+0
A144: 999 | B144: ROBINSON , Phil | C144: Brentwood | D144: ENG | E144: 93 | F144: 0 | G144: 0 | H144: 0 | I144: 0 | J144: 0+0+0
A145: 999 | B145: ROGERSON , Noah | C145: Truro | D145: ENG | E145: 95 | F145: 0 | G145: 0 | H145: 0 | I145: 0 | J145: 0+0+0
A146: 999 | B146: SEDDON, Daniel | C146: MX Fencing | D146: ENG | E146: 93 | F146: 0 | G146: 0 | H146: 0 | I146: 0 | J146: 0+0+0
A147: 999 | B147: SIMMONS, Peter | C147: Shakespeare's Swords | D147: ENG | E147: 96 | F147: 0 | G147: 0 | H147: 0 | I147: 0 | J147: 0+0+0
A148: 999 | B148: SIMPSON , Jamie | C148: Stockport | D148: NIR | E148: 94 | F148: 0 | G148: 0 | H148: 0 | I148: 0 | J148: 0+0+0
A149: 999 | B149: SLATTER-TOUBAS, Marix | C149: Rivington Park | D149: ENG | E149: 95 | F149: 0 | G149: 0 | H149: 0 | I149: 0 | J149: 0+0+0
A150: 999 | B150: SLINGSBY-SMITH, Zachary | C150: Taunton Blades | D150: ENG | E150: 93 | F150: 0 | G150: 0 | H150: 0 | I150: 0 | J150: 0+0+0
A151: 999 | B151: SPOOR, Josh | C151: Camden | D151: ENG | E151: 95 | F151: 0 | G151: 0 | H151: 0 | I151: 0 | J151: 0+0+0
A152: 999 | B152: TAI, Ho-Fung | C152: Bedford | D152: ENG | E152: 93 | F152: 0 | G152: 0 | H152: 0 | I152: 0 | J152: 0+0+0
A153: 999 | B153: THURSTON , Freddy | C153: Eton | D153: ENG | E153: 95 | F153: 0 | G153: 0 | H153: 0 | I153: 0 | J153: 0+0+0
A154: 999 | B154: URIBE , Rapael | C154: MX Fencing Club | D154: ENG | E154: 95 | F154: 0 | G154: 0 | H154: 0 | I154: 0 | J154: 0+0+0
A155: 999 | B155: VANOFFLEN, Carl | C155: unattached | D155: ENG | E155: 93 | F155: 0 | G155: 0 | H155: 0 | I155: 0 | J155: 0+0+0
A156: 999 | B156: WALKER, Henry | C156: Truro | D156: ENG | E156: 93 | F156: 0 | G156: 0 | H156: 0 | I156: 0 | J156: 0+0+0
A157: 999 | B157: WEBB, William | C157: Lazlos | D157: ENG | E157: 95 | F157: 0 | G157: 0 | H157: 0 | I157: 0 | J157: 0+0+0
A158: 999 | B158: WHITTLE, Magnus | C158: Shakespeare's Swords | D158: ENG | E158: 95 | F158: 0 | G158: 0 | H158: 0 | I158: 0 | J158: 0+0+0
A159: 999 | B159: WILLIAMS, Barnabas | C159: Salle 101 | D159: ENG | E159: 93 | F159: 0 | G159: 0 | H159: 0 | I159: 0 | J159: 0+0+0
A160: 999 | B160: WILLIAMS, Griff | C160: Millfield | D160: WAL | E160: 94 | F160: 0 | G160: 0 | H160: 0 | I160: 0 | J160: 0+0+0
A161: 999 | B161: WILLIAMS, Nick | C161: NLSC | D161: ENG | E161: 95 | F161: 0 | G161: 0 | H161: 0 | I161: 0 | J161: 0+0+0
A162: 999 | B162: WOODS, Henry | C162: Eton | D162: ENG | E162: 95 | F162: 0 | G162: 0 | H162: 0 | I162: 0 | J162: 0+0+0

Sheet 2012-13F
K1: Hamlet Open Sabre | N1: Bedford Junior | P1: Selection Date - Sosnowiec | Q1: Gateshead | S1: Selection Date - Dormagen, Lignano | T1: Welsh Open | W1: Sosnowiec WC, POL | Y1: Selection Date - Dourdan | Z1: Dormagen WC, GER | AC1: Lignano Sabbiadoro WC, ITA | AE1: Selection Date - European Championships | AF1: Dourdan WC, FRA | AI1: U20 National Championships | AK1: Selection Date - World Championships European Championships Team Preparation Day | AL1: European Championships | AN1: World Championships Team Preparation Day | AO1: World Championships, Algiers, DZA
B2: 13 Oct 12 | K2: 01/09/2012 | N2: 22/09/2012 | P2: 23/09/2012 | Q2: 13/10/2012 | S2: 14/10/2012 | T2: 10/11/2012 | W2: 17/11/2012 | Y2: 18/11/2012 | Z2: 01/12/2012 | AC2: 05/01/2013 | AE2: 08/01/2013 | AF2: 19/01/2013 | AI2: 10/02/2013 | AK2: 10/02/2013 17/02/2013 | AL2: 05-09/03/2013 | AN2: 17/03/2013 | AO2: 02-07/04/2013
J3: NIF | L3: 56*2 | O3: 81 | R3: 58
J4: CompType | L4: dom | O4: dom | R4: dom | U4: dom | X4: int | AA4: int | AD4: int | AG4: int | AJ4: nat | AM4: int | AP4: int
J5: Entries | L5: 61 | O5: 29 | R5: 15
J6: Cutoff | L6: 42 | O6: 21 | R6: 11
A8: Rank | B8: Name | C8: Club | D8: HC | E8: Year | F8: Nats | G8: Dom | H8: Int | I8: Total | J8: Nt+Dm+In
A9: 1 | B9: DIXON, Harriet | C9: Millfield | D9: WAL | E9: 94 | F9: 0 | G9: 4074 | H9: 0 | I9: 4074 | J9: 0+3+0 | K9: 5th | L9: =IF(eVAL(K9)>0,IF(eVAL(K9)<=$L$6,VLOOKUP(eVAL(K9),Multiplier,2)*112,0),"") -> 1456 | N9: 2nd | O9: =IF(eVAL(N9)>0,IF(eVAL(N9)<=$O$6,VLOOKUP(eVAL(N9),Multiplier,2)*O$3,0),"") -> 1458 | Q9: 1st | R9: =IF(eVAL(Q9)>0,IF(eVAL(Q9)<=R$6,VLOOKUP(eVAL(Q9),Multiplier,2)*R$3,0),"") -> 1160
A10: 2 | B10: RUAUX, Emily | C10: Rivington Park | D10: ENG | E10: 95 | F10: 0 | G10: 3366.24 | H10: 0 | I10: 3366.24 | J10: 0+3+0 | K10: 9th | L10: =IF(eVAL(K10)>0,IF(eVAL(K10)<=$L$6,VLOOKUP(eVAL(K10),Multiplier,2)*112,0),"") -> 994.56 | N10: 1st | O10: =IF(eVAL(N10)>0,IF(eVAL(N10)<=$O$6,VLOOKUP(eVAL(N10),Multiplier,2)*O$3,0),"") -> 1620 | Q10: 6th | R10: =IF(eVAL(Q10)>0,IF(eVAL(Q10)<=R$6,VLOOKUP(eVAL(Q10),Multiplier,2)*R$3,0),"") -> 751.68
A11: 3 | B11: ANIL, Shreya | C11: Truro | D11: ENG | E11: 98 | F11: 0 | G11: 2760 | H11: 0 | I11: 2760 | J11: 0+3+0 | K11: 16th | L11: =IF(eVAL(K11)>0,IF(eVAL(K11)<=$L$6,VLOOKUP(eVAL(K11),Multiplier,2)*112,0),"") -> 963.2 | N11: 6th | O11: =IF(eVAL(N11)>0,IF(eVAL(N11)<=$O$6,VLOOKUP(eVAL(N11),Multiplier,2)*O$3,0),"") -> 1049.76 | Q11: 8th | R11: =IF(eVAL(Q11)>0,IF(eVAL(Q11)<=R$6,VLOOKUP(eVAL(Q11),Multiplier,2)*R$3,0),"") -> 747.04
A12: 4 | B12: RUSHTON, Francesca | C12: CHC | D12: ENG | E12: 94 | F12: 0 | G12: 2610.96 | H12: 0 | I12: 2610.96 | J12: 0+3+0 | K12: 13th | L12: =IF(eVAL(K12)>0,IF(eVAL(K12)<=$L$6,VLOOKUP(eVAL(K12),Multiplier,2)*112,0),"") -> 976.64 | N12: 13th | O12: =IF(eVAL(N12)>0,IF(eVAL(N12)<=$O$6,VLOOKUP(eVAL(N12),Multiplier,2)*O$3,0),"") -> 706.32 | Q12: 3rd | R12: =IF(eVAL(Q12)>0,IF(eVAL(Q12)<=R$6,VLOOKUP(eVAL(Q12),Multiplier,2)*R$3,0),"") -> 928
A13: 5 | B13: MAIDWELL-SMITH, Alice | C13: Truro | D13: ENG | E13: 94 | F13: 0 | G13: 2557.28 | H13: 0 | I13: 2557.28 | J13: 0+3+0 | K13: 36th | L13: =IF(eVAL(K13)>0,IF(eVAL(K13)<=$L$6,VLOOKUP(eVAL(K13),Multiplier,2)*112,0),"") -> 217.28 | N13: 3rd | O13: =IF(eVAL(N13)>0,IF(eVAL(N13)<=$O$6,VLOOKUP(eVAL(N13),Multiplier,2)*O$3,0),"") -> 1296 | Q13: 2nd | R13: =IF(eVAL(Q13)>0,IF(eVAL(Q13)<=R$6,VLOOKUP(eVAL(Q13),Multiplier,2)*R$3,0),"") -> 1044
A14: 6 | B14: NELSON, Hannah | C14: Camden | D14: ENG | E14: 95 | F14: 0 | G14: 2553.64 | H14: 0 | I14: 2553.64 | J14: 0+3+0 | K14: 11th | L14: =IF(eVAL(K14)>0,IF(eVAL(K14)<=$L$6,VLOOKUP(eVAL(K14),Multiplier,2)*112,0),"") -> 985.6 | N14: 5th | O14: =IF(eVAL(N14)>0,IF(eVAL(N14)<=$O$6,VLOOKUP(eVAL(N14),Multiplier,2)*O$3,0),"") -> 1053 | Q14: 9th | R14: =IF(eVAL(Q14)>0,IF(eVAL(Q14)<=R$6,VLOOKUP(eVAL(Q14),Multiplier,2)*R$3,0),"") -> 515.04
A15: 7 | B15: GLADDISH, Laura | C15: MX Fencing | D15: ENG | E15: 97 | F15: 0 | G15: 2268.16 | H15: 0 | I15: 2268.16 | J15: 0+2+0 | K15: 14th | L15: =IF(eVAL(K15)>0,IF(eVAL(K15)<=$L$6,VLOOKUP(eVAL(K15),Multiplier,2)*112,0),"") -> 972.16 | N15: 3rd | O15: =IF(eVAL(N15)>0,IF(eVAL(N15)<=$O$6,VLOOKUP(eVAL(N15),Multiplier,2)*O$3,0),"") -> 1296 | R15: =IF(eVAL(Q15)>0,IF(eVAL(Q15)<=R$6,VLOOKUP(eVAL(Q15),Multiplier,2)*R$3,0),"") -> 
A16: 8 | B16: BEDDOE, Megan | C16: MX Fencing | D16: ENG | E16: 95 | F16: 0 | G16: 2263.52 | H16: 0 | I16: 2263.52 | J16: 0+3+0 | K16: 18th | L16: =IF(eVAL(K16)>0,IF(eVAL(K16)<=$L$6,VLOOKUP(eVAL(K16),Multiplier,2)*112,0),"") -> 622.72 | N16: 11th | O16: =IF(eVAL(N16)>0,IF(eVAL(N16)<=$O$6,VLOOKUP(eVAL(N16),Multiplier,2)*O$3,0),"") -> 712.8 | Q16: 3rd | R16: =IF(eVAL(Q16)>0,IF(eVAL(Q16)<=R$6,VLOOKUP(eVAL(Q16),Multiplier,2)*R$3,0),"") -> 928
A17: 9 | B17: HAMPSON, Sarah-Jane | C17: West Fife | D17: SCO | E17: 96 | F17: 0 | G17: 1998.72 | H17: 0 | I17: 1998.72 | J17: 0+3+0 | K17: 41st | L17: =IF(eVAL(K17)>0,IF(eVAL(K17)<=$L$6,VLOOKUP(eVAL(K17),Multiplier,2)*112,0),"") -> 206.08 | N17: 8th | O17: =IF(eVAL(N17)>0,IF(eVAL(N17)<=$O$6,VLOOKUP(eVAL(N17),Multiplier,2)*O$3,0),"") -> 1043.28 | Q17: 7th | R17: =IF(eVAL(Q17)>0,IF(eVAL(Q17)<=R$6,VLOOKUP(eVAL(Q17),Multiplier,2)*R$3,0),"") -> 749.36
A18: 10 | B18: BILLINGTON, Lizzie | C18: Shakespeares | D18: NIR | E18: 95 | F18: 0 | G18: 1829.08 | H18: 0 | I18: 1829.08 | J18: 0+3+0 | K18: 23rd | L18: =IF(eVAL(K18)>0,IF(eVAL(K18)<=$L$6,VLOOKUP(eVAL(K18),Multiplier,2)*112,0),"") -> 600.32 | N18: 10th | O18: =IF(eVAL(N18)>0,IF(eVAL(N18)<=$O$6,VLOOKUP(eVAL(N18),Multiplier,2)*O$3,0),"") -> 716.04 | Q18: 10th | R18: =IF(eVAL(Q18)>0,IF(eVAL(Q18)<=R$6,VLOOKUP(eVAL(Q18),Multiplier,2)*R$3,0),"") -> 512.72
A19: 11 | B19: DAYKIN, Kate | C19: West Fife | D19: SCO | E19: 96 | F19: 0 | G19: 1695.04 | H19: 0 | I19: 1695.04 | J19: 0+3+0 | K19: 34th | L19: =IF(eVAL(K19)>0,IF(eVAL(K19)<=$L$6,VLOOKUP(eVAL(K19),Multiplier,2)*112,0),"") -> 221.76 | N19: 9th | O19: =IF(eVAL(N19)>0,IF(eVAL(N19)<=$O$6,VLOOKUP(eVAL(N19),Multiplier,2)*O$3,0),"") -> 719.28 | Q19: 5th | R19: =IF(eVAL(Q19)>0,IF(eVAL(Q19)<=R$6,VLOOKUP(eVAL(Q19),Multiplier,2)*R$3,0),"") -> 754
A20: 12 | B20: TURNBULL, Isabel | C20: MX Fencing | D20: ENG | E20: 97 | F20: 0 | G20: 1628.92 | H20: 0 | I20: 1628.92 | J20: 0+2+0 | K20: 27th | L20: =IF(eVAL(K20)>0,IF(eVAL(K20)<=$L$6,VLOOKUP(eVAL(K20),Multiplier,2)*112,0),"") -> 582.4 | N20: 7th | O20: =IF(eVAL(N20)>0,IF(eVAL(N20)<=$O$6,VLOOKUP(eVAL(N20),Multiplier,2)*O$3,0),"") -> 1046.52 | R20: =IF(eVAL(Q20)>0,IF(eVAL(Q20)<=R$6,VLOOKUP(eVAL(Q20),Multiplier,2)*R$3,0),"") -> 
A21: 13 | B21: SLEEMAN, Kiera | C21: Truro | D21: ENG | E21: 97 | F21: 0 | G21: 1437.2 | H21: 0 | I21: 1437.2 | J21: 0+2+0 | K21: 10th | L21: =IF(eVAL(K21)>0,IF(eVAL(K21)<=$L$6,VLOOKUP(eVAL(K21),Multiplier,2)*112,0),"") -> 990.08 | N21: 19th | O21: =IF(eVAL(N21)>0,IF(eVAL(N21)<=$O$6,VLOOKUP(eVAL(N21),Multiplier,2)*O$3,0),"") -> 447.12 | R21: =IF(eVAL(Q21)>0,IF(eVAL(Q21)<=R$6,VLOOKUP(eVAL(Q21),Multiplier,2)*R$3,0),"") -> 
A22: 14 | B22: CORBY, Jessica | C22: West Fife | D22: SCO | E22: 98 | F22: 0 | G22: 1424.04 | H22: 0 | I22: 1424.04 | J22: 0+3+0 | K22: 39th | L22: =IF(eVAL(K22)>0,IF(eVAL(K22)<=$L$6,VLOOKUP(eVAL(K22),Multiplier,2)*112,0),"") -> 210.56 | N22: 14th | O22: =IF(eVAL(N22)>0,IF(eVAL(N22)<=$O$6,VLOOKUP(eVAL(N22),Multiplier,2)*O$3,0),"") -> 703.08 | Q22: 11th | R22: =IF(eVAL(Q22)>0,IF(eVAL(Q22)<=R$6,VLOOKUP(eVAL(Q22),Multiplier,2)*R$3,0),"") -> 510.4
A23: 15 | B23: SOSNOWSKA, Izabela | C23: Exeter Uni | D23: ENG | E23: 93 | F23: 0 | G23: 1323.32 | H23: 0 | I23: 1323.32 | J23: 0+2+0 | K23: 20th | L23: =IF(eVAL(K23)>0,IF(eVAL(K23)<=$L$6,VLOOKUP(eVAL(K23),Multiplier,2)*112,0),"") -> 613.76 | N23: 12th | O23: =IF(eVAL(N23)>0,IF(eVAL(N23)<=$O$6,VLOOKUP(eVAL(N23),Multiplier,2)*O$3,0),"") -> 709.56 | R23: =IF(eVAL(Q23)>0,IF(eVAL(Q23)<=R$6,VLOOKUP(eVAL(Q23),Multiplier,2)*R$3,0),"") -> 
A24: 16 | B24: NOREJKO, Teresa | C24: Truro | D24: WAL | E24: 95 | F24: 0 | G24: 1291.2 | H24: 0 | I24: 1291.2 | J24: 0+2+0 | K24: 25th | L24: =IF(eVAL(K24)>0,IF(eVAL(K24)<=$L$6,VLOOKUP(eVAL(K24),Multiplier,2)*112,0),"") -> 591.36 | N24: 15th | O24: =IF(eVAL(N24)>0,IF(eVAL(N24)<=$O$6,VLOOKUP(eVAL(N24),Multiplier,2)*O$3,0),"") -> 699.84 | R24: =IF(eVAL(Q24)>0,IF(eVAL(Q24)<=R$6,VLOOKUP(eVAL(Q24),Multiplier,2)*R$3,0),"") -> 
A25: 17 | B25: CHART, Maria | C25: Truro | D25: ENG | E25: 98 | F25: 0 | G25: 1283.48 | H25: 0 | I25: 1283.48 | J25: 0+2+0 | K25: 26th | L25: =IF(eVAL(K25)>0,IF(eVAL(K25)<=$L$6,VLOOKUP(eVAL(K25),Multiplier,2)*112,0),"") -> 586.88 | N25: 16th | O25: =IF(eVAL(N25)>0,IF(eVAL(N25)<=$O$6,VLOOKUP(eVAL(N25),Multiplier,2)*O$3,0),"") -> 696.6 | R25: =IF(eVAL(Q25)>0,IF(eVAL(Q25)<=R$6,VLOOKUP(eVAL(Q25),Multiplier,2)*R$3,0),"") -> 
A26: 18 | B26: HUTTON, Daisy | C26: MX Fencing | D26: ENG | E26: 98 | F26: 0 | G26: 1008.36 | H26: 0 | I26: 1008.36 | J26: 0+2+0 | K26: 31st | L26: =IF(eVAL(K26)>0,IF(eVAL(K26)<=$L$6,VLOOKUP(eVAL(K26),Multiplier,2)*112,0),"") -> 564.48 | N26: 20th | O26: =IF(eVAL(N26)>0,IF(eVAL(N26)<=$O$6,VLOOKUP(eVAL(N26),Multiplier,2)*O$3,0),"") -> 443.88 | R26: =IF(eVAL(Q26)>0,IF(eVAL(Q26)<=R$6,VLOOKUP(eVAL(Q26),Multiplier,2)*R$3,0),"") -> 
A27: 19 | B27: RIDGEON, Verity | C27: Scimitar | D27: ENG | E27: 93 | F27: 0 | G27: 967.68 | H27: 0 | I27: 967.68 | J27: 0+1+0 | K27: 15th | L27: =IF(eVAL(K27)>0,IF(eVAL(K27)<=$L$6,VLOOKUP(eVAL(K27),Multiplier,2)*112,0),"") -> 967.68 | R27: =IF(eVAL(Q27)>0,IF(eVAL(Q27)<=R$6,VLOOKUP(eVAL(Q27),Multiplier,2)*R$3,0),"") -> 
A28: 20 | B28: LILLYCROP, Megan | C28: Bridgend | D28: WAL | E28: 93 | F28: 0 | G28: 577.92 | H28: 0 | I28: 577.92 | J28: 0+1+0 | K28: 28th | L28: =IF(eVAL(K28)>0,IF(eVAL(K28)<=$L$6,VLOOKUP(eVAL(K28),Multiplier,2)*112,0),"") -> 577.92 | R28: =IF(eVAL(Q28)>0,IF(eVAL(Q28)<=R$6,VLOOKUP(eVAL(Q28),Multiplier,2)*R$3,0),"") -> 
A29: 21 | B29: MOFFAT, Alice | C29: Stratford | D29: ENG | E29: 94 | F29: 0 | G29: 453.6 | H29: 0 | I29: 453.6 | J29: 0+1+0 | L29: =IF(eVAL(K29)>0,IF(eVAL(K29)<=$L$6,VLOOKUP(eVAL(K29),Multiplier,2)*112,0),"") ->  | N29: 17th | O29: =IF(eVAL(N29)>0,IF(eVAL(N29)<=$O$6,VLOOKUP(eVAL(N29),Multiplier,2)*O$3,0),"") -> 453.6 | R29: =IF(eVAL(Q29)>0,IF(eVAL(Q29)<=R$6,VLOOKUP(eVAL(Q29),Multiplier,2)*R$3,0),"") -> 
A30: 22 | B30: CRAWFORD, Anna | C30: Queensland | E30: 93 | F30: 0 | G30: 450.36 | H30: 0 | I30: 450.36 | J30: 0+3+0 | K30: 50th | L30: =IF(eVAL(K30)>0,IF(eVAL(K30)<=$L$6,VLOOKUP(eVAL(K30),Multiplier,2)*112,0),"") -> 0 | N30: 18th | O30: =IF(eVAL(N30)>0,IF(eVAL(N30)<=$O$6,VLOOKUP(eVAL(N30),Multiplier,2)*O$3,0),"") -> 450.36 | Q30: 12th | R30: =IF(eVAL(Q30)>0,IF(eVAL(Q30)<=R$6,VLOOKUP(eVAL(Q30),Multiplier,2)*R$3,0),"") -> 0
A31: 23 | B31: BANKS , Paisley | C31: Millfield | D31: ENG | E31: 96 | F31: 0 | G31: 440.64 | H31: 0 | I31: 440.64 | J31: 0+2+0 | L31: =IF(eVAL(K31)>0,IF(eVAL(K31)<=$L$6,VLOOKUP(eVAL(K31),Multiplier,2)*112,0),"") ->  | N31: 21st | O31: =IF(eVAL(N31)>0,IF(eVAL(N31)<=$O$6,VLOOKUP(eVAL(N31),Multiplier,2)*O$3,0),"") -> 440.64 | Q31: 14th | R31: =IF(eVAL(Q31)>0,IF(eVAL(Q31)<=R$6,VLOOKUP(eVAL(Q31),Multiplier,2)*R$3,0),"") -> 0
A32: 24 | B32: ROSE, Sarah | C32: St Albans | D32: ENG | E32: 94 | F32: 0 | G32: 208.32 | H32: 0 | I32: 208.32 | J32: 0+1+0 | K32: 40th | L32: =IF(eVAL(K32)>0,IF(eVAL(K32)<=$L$6,VLOOKUP(eVAL(K32),Multiplier,2)*112,0),"") -> 208.32 | R32: =IF(eVAL(Q32)>0,IF(eVAL(Q32)<=R$6,VLOOKUP(eVAL(Q32),Multiplier,2)*R$3,0),"") -> 
A33: 25 | B33: HEEPS, Katie | C33: West Fife | D33: SCO | E33: 97 | F33: 0 | G33: 0 | H33: 0 | I33: 0 | J33: 0+2+0 | K33: 58th | L33: =IF(eVAL(K33)>0,IF(eVAL(K33)<=$L$6,VLOOKUP(eVAL(K33),Multiplier,2)*112,0),"") -> 0 | Q33: 13th | R33: =IF(eVAL(Q33)>0,IF(eVAL(Q33)<=R$6,VLOOKUP(eVAL(Q33),Multiplier,2)*R$3,0),"") -> 0
A34: 25 | B34: DAVIES, Harriet | C34: Bath Sword | D34: ENG | E34: 94 | F34: 0 | G34: 0 | H34: 0 | I34: 0 | J34: 0+3+0 | K34: 47th | L34: =IF(eVAL(K34)>0,IF(eVAL(K34)<=$L$6,VLOOKUP(eVAL(K34),Multiplier,2)*112,0),"") -> 0 | N34: 28th | O34: =IF(eVAL(N34)>0,IF(eVAL(N34)<=$O$6,VLOOKUP(eVAL(N34),Multiplier,2)*O$3,0),"") -> 0 | Q34: 15th | R34: =IF(eVAL(Q34)>0,IF(eVAL(Q34)<=R$6,VLOOKUP(eVAL(Q34),Multiplier,2)*R$3,0),"") -> 0
A35: 25 | B35: BLACK, Gabrielle | C35: Escrime Academy | F35: 0 | G35: 0 | H35: 0 | I35: 0 | J35: 0+1+0 | L35: =IF(eVAL(K35)>0,IF(eVAL(K35)<=$L$6,VLOOKUP(eVAL(K35),Multiplier,2)*112,0),"") ->  | N35: 26th | O35: =IF(eVAL(N35)>0,IF(eVAL(N35)<=$O$6,VLOOKUP(eVAL(N35),Multiplier,2)*O$3,0),"") -> 0 | R35: =IF(eVAL(Q35)>0,IF(eVAL(Q35)<=R$6,VLOOKUP(eVAL(Q35),Multiplier,2)*R$3,0),"") -> 
A36: 25 | B36: BURTON, Emma | C36: Bedford | D36: ENG | E36: 94 | F36: 0 | G36: 0 | H36: 0 | I36: 0 | J36: 0+1+0 | K36: 51st | L36: =IF(eVAL(K36)>0,IF(eVAL(K36)<=$L$6,VLOOKUP(eVAL(K36),Multiplier,2)*112,0),"") -> 0 | R36: =IF(eVAL(Q36)>0,IF(eVAL(Q36)<=R$6,VLOOKUP(eVAL(Q36),Multiplier,2)*R$3,0),"") -> 
A37: 25 | B37: GWILLIM-THOMAS, Rose | C37: Headington | F37: 0 | G37: 0 | H37: 0 | I37: 0 | J37: 0+1+0 | L37: =IF(eVAL(K37)>0,IF(eVAL(K37)<=$L$6,VLOOKUP(eVAL(K37),Multiplier,2)*112,0),"") ->  | N37: 29th | O37: =IF(eVAL(N37)>0,IF(eVAL(N37)<=$O$6,VLOOKUP(eVAL(N37),Multiplier,2)*O$3,0),"") -> 0 | R37: =IF(eVAL(Q37)>0,IF(eVAL(Q37)<=R$6,VLOOKUP(eVAL(Q37),Multiplier,2)*R$3,0),"") -> 
A38: 25 | B38: HALLIWELL Chloe | C38: Shakespeare's | D38: ENG | E38: 98 | F38: 0 | G38: 0 | H38: 0 | I38: 0 | J38: 0+1+0 | K38: 61st | L38: =IF(eVAL(K38)>0,IF(eVAL(K38)<=$L$6,VLOOKUP(eVAL(K38),Multiplier,2)*112,0),"") -> 0 | R38: =IF(eVAL(Q38)>0,IF(eVAL(Q38)<=R$6,VLOOKUP(eVAL(Q38),Multiplier,2)*R$3,0),"") -> 
A39: 25 | B39: LUCAS, Bethan | C39: Bedford | D39: ENG | E39: 96 | F39: 0 | G39: 0 | H39: 0 | I39: 0 | J39: 0+1+0 | L39: =IF(eVAL(K39)>0,IF(eVAL(K39)<=$L$6,VLOOKUP(eVAL(K39),Multiplier,2)*112,0),"") ->  | N39: 24th | O39: =IF(eVAL(N39)>0,IF(eVAL(N39)<=$O$6,VLOOKUP(eVAL(N39),Multiplier,2)*O$3,0),"") -> 0 | R39: =IF(eVAL(Q39)>0,IF(eVAL(Q39)<=R$6,VLOOKUP(eVAL(Q39),Multiplier,2)*R$3,0),"") -> 
A40: 25 | B40: SMITH, Millie | C40: Truro | D40: ENG | E40: 94 | F40: 0 | G40: 0 | H40: 0 | I40: 0 | J40: 0+1+0 | L40: =IF(eVAL(K40)>0,IF(eVAL(K40)<=$L$6,VLOOKUP(eVAL(K40),Multiplier,2)*112,0),"") ->  | N40: 24th | O40: =IF(eVAL(N40)>0,IF(eVAL(N40)<=$O$6,VLOOKUP(eVAL(N40),Multiplier,2)*O$3,0),"") -> 0 | R40: =IF(eVAL(Q40)>0,IF(eVAL(Q40)<=R$6,VLOOKUP(eVAL(Q40),Multiplier,2)*R$3,0),"") -> 
A41: 25 | B41: STEVENS, Miranda | C41: MX Fencing | F41: 0 | G41: 0 | H41: 0 | I41: 0 | J41: 0+1+0 | L41: =IF(eVAL(K41)>0,IF(eVAL(K41)<=$L$6,VLOOKUP(eVAL(K41),Multiplier,2)*112,0),"") ->  | N41: 27th | O41: =IF(eVAL(N41)>0,IF(eVAL(N41)<=$O$6,VLOOKUP(eVAL(N41),Multiplier,2)*O$3,0),"") -> 0 | R41: =IF(eVAL(Q41)>0,IF(eVAL(Q41)<=R$6,VLOOKUP(eVAL(Q41),Multiplier,2)*R$3,0),"") -> 
A42: 25 | B42: VIDAL, Clemence | C42: Escrime Academy | F42: 0 | G42: 0 | H42: 0 | I42: 0 | J42: 0+1+0 | L42: =IF(eVAL(K42)>0,IF(eVAL(K42)<=$L$6,VLOOKUP(eVAL(K42),Multiplier,2)*112,0),"") ->  | N42: 25th | O42: =IF(eVAL(N42)>0,IF(eVAL(N42)<=$O$6,VLOOKUP(eVAL(N42),Multiplier,2)*O$3,0),"") -> 0 | R42: =IF(eVAL(Q42)>0,IF(eVAL(Q42)<=R$6,VLOOKUP(eVAL(Q42),Multiplier,2)*R$3,0),"") -> 
A43: 25 | B43: WYATT, Layla | C43: Salle Hunt Roeder | D43: ENG | E43: 94 | F43: 0 | G43: 0 | H43: 0 | I43: 0 | J43: 0+2+0 | K43: 48th | L43: =IF(eVAL(K43)>0,IF(eVAL(K43)<=$L$6,VLOOKUP(eVAL(K43),Multiplier,2)*112,0),"") -> 0 | N43: 22nd | O43: =IF(eVAL(N43)>0,IF(eVAL(N43)<=$O$6,VLOOKUP(eVAL(N43),Multiplier,2)*O$3,0),"") -> 0 | R43: =IF(eVAL(Q43)>0,IF(eVAL(Q43)<=R$6,VLOOKUP(eVAL(Q43),Multiplier,2)*R$3,0),"") -> 
A44: 999 | B44: ALLEN, Sophie | C44: Truro | D44: ENG | E44: 96 | F44: 0 | G44: 0 | H44: 0 | I44: 0 | J44: 0+0+0 | L44: =IF(eVAL(K44)>0,IF(eVAL(K44)<=$L$6,VLOOKUP(eVAL(K44),Multiplier,2)*112,0),"") -> 
A45: 999 | B45: BADGER, Laura | C45: Stourbridge | D45: ENG | E45: 94 | F45: 0 | G45: 0 | H45: 0 | I45: 0 | J45: 0+0+0 | L45: =IF(eVAL(K45)>0,IF(eVAL(K45)<=$L$6,VLOOKUP(eVAL(K45),Multiplier,2)*112,0),"") -> 
A46: 999 | B46: BRADLEY , Eucalypta | C46: Camden | D46: ENG | E46: 93 | F46: 0 | G46: 0 | H46: 0 | I46: 0 | J46: 0+0+0 | L46: =IF(eVAL(K46)>0,IF(eVAL(K46)<=$L$6,VLOOKUP(eVAL(K46),Multiplier,2)*112,0),"") -> 
A47: 999 | B47: CAMPBELL, Hannah | C47: Bedford | D47: ENG | E47: 94 | F47: 0 | G47: 0 | H47: 0 | I47: 0 | J47: 0+0+0 | L47: =IF(eVAL(K47)>0,IF(eVAL(K47)<=$L$6,VLOOKUP(eVAL(K47),Multiplier,2)*112,0),"") -> 
A48: 999 | B48: CARSON, Victoria | C48: City | D48: SCO | E48: 94 | F48: 0 | G48: 0 | H48: 0 | I48: 0 | J48: 0+0+0 | L48: =IF(eVAL(K48)>0,IF(eVAL(K48)<=$L$6,VLOOKUP(eVAL(K48),Multiplier,2)*112,0),"") -> 
A49: 999 | B49: CLEAVER, Polly | C49: Stratford | D49: ENG | E49: 94 | F49: 0 | G49: 0 | H49: 0 | I49: 0 | J49: 0+0+0 | L49: =IF(eVAL(K49)>0,IF(eVAL(K49)<=$L$6,VLOOKUP(eVAL(K49),Multiplier,2)*112,0),"") -> 
A50: 999 | B50: CLUTTERBUCK , Hannah | C50: Tameside | D50: ENG | E50: 95 | F50: 0 | G50: 0 | H50: 0 | I50: 0 | J50: 0+0+0 | L50: =IF(eVAL(K50)>0,IF(eVAL(K50)<=$L$6,VLOOKUP(eVAL(K50),Multiplier,2)*112,0),"") -> 
A51: 999 | B51: CONNOR, Harriet | C51: Stormount | D51: NIR | E51: 94 | F51: 0 | G51: 0 | H51: 0 | I51: 0 | J51: 0+0+0 | L51: =IF(eVAL(K51)>0,IF(eVAL(K51)<=$L$6,VLOOKUP(eVAL(K51),Multiplier,2)*112,0),"") -> 
A52: 999 | B52: CRASTES, Emma | C52: Escrime Academy | D52: ENG | E52: 95 | F52: 0 | G52: 0 | H52: 0 | I52: 0 | J52: 0+0+0 | L52: =IF(eVAL(K52)>0,IF(eVAL(K52)<=$L$6,VLOOKUP(eVAL(K52),Multiplier,2)*112,0),"") -> 
A53: 999 | B53: EVANS, Jasmine | C53: Tauton Deane | D53: ENG | E53: 95 | F53: 0 | G53: 0 | H53: 0 | I53: 0 | J53: 0+0+0 | L53: =IF(eVAL(K53)>0,IF(eVAL(K53)<=$L$6,VLOOKUP(eVAL(K53),Multiplier,2)*112,0),"") -> 
A54: 999 | B54: FENTON, Niamh | C54: MX Fencing | E54: 97 | F54: 0 | G54: 0 | H54: 0 | I54: 0 | J54: 0+0+0 | L54: =IF(eVAL(K54)>0,IF(eVAL(K54)<=$L$6,VLOOKUP(eVAL(K54),Multiplier,2)*112,0),"") -> 
A55: 999 | B55: FRAZER, Naomi | C55: Stourbridge | D55: ENG | E55: 93 | F55: 0 | G55: 0 | H55: 0 | I55: 0 | J55: 0+0+0 | L55: =IF(eVAL(K55)>0,IF(eVAL(K55)<=$L$6,VLOOKUP(eVAL(K55),Multiplier,2)*112,0),"") -> 
A56: 999 | B56: HALL, Eleanor | C56: LTFC | D56: ENG | E56: 94 | F56: 0 | G56: 0 | H56: 0 | I56: 0 | J56: 0+0+0 | L56: =IF(eVAL(K56)>0,IF(eVAL(K56)<=$L$6,VLOOKUP(eVAL(K56),Multiplier,2)*112,0),"") -> 
A57: 999 | B57: HARRIS, Philippa | C57: Sheffield Sword | D57: WAL | E57: 93 | F57: 0 | G57: 0 | H57: 0 | I57: 0 | J57: 0+0+0 | L57: =IF(eVAL(K57)>0,IF(eVAL(K57)<=$L$6,VLOOKUP(eVAL(K57),Multiplier,2)*112,0),"") -> 
A58: 999 | B58: HELLEWELL, Sarah | C58: Strathallan | D58: SCO | E58: 94 | F58: 0 | G58: 0 | H58: 0 | I58: 0 | J58: 0+0+0 | L58: =IF(eVAL(K58)>0,IF(eVAL(K58)<=$L$6,VLOOKUP(eVAL(K58),Multiplier,2)*112,0),"") -> 
A59: 999 | B59: HORRIX, Emma | C59: Camden | D59: ENG | E59: 93 | F59: 0 | G59: 0 | H59: 0 | I59: 0 | J59: 0+0+0 | L59: =IF(eVAL(K59)>0,IF(eVAL(K59)<=$L$6,VLOOKUP(eVAL(K59),Multiplier,2)*112,0),"") -> 
A60: 999 | B60: HOUSEMAN, Gaby | C60: Xiphoi | D60: ENG | E60: 94 | F60: 0 | G60: 0 | H60: 0 | I60: 0 | J60: 0+0+0 | L60: =IF(eVAL(K60)>0,IF(eVAL(K60)<=$L$6,VLOOKUP(eVAL(K60),Multiplier,2)*112,0),"") -> 
A61: 999 | B61: HOWELLS, Abigail | C61: Bridgend | D61: ENG | E61: 94 | F61: 0 | G61: 0 | H61: 0 | I61: 0 | J61: 0+0+0 | L61: =IF(eVAL(K61)>0,IF(eVAL(K61)<=$L$6,VLOOKUP(eVAL(K61),Multiplier,2)*112,0),"") -> 
A62: 999 | B62: HUGHES, Frances | C62: Ddraig Wern | D62: WAL | E62: 94 | F62: 0 | G62: 0 | H62: 0 | I62: 0 | J62: 0+0+0 | L62: =IF(eVAL(K62)>0,IF(eVAL(K62)<=$L$6,VLOOKUP(eVAL(K62),Multiplier,2)*112,0),"") -> 
A63: 999 | B63: ITZKOWITZ, Aliya | C63: Camden | D63: ENG | E63: 94 | F63: 0 | G63: 0 | H63: 0 | I63: 0 | J63: 0+0+0 | L63: =IF(eVAL(K63)>0,IF(eVAL(K63)<=$L$6,VLOOKUP(eVAL(K63),Multiplier,2)*112,0),"") -> 
A64: 999 | B64: JONES, Libby | C64: Ddraig Wern | D64: WAL | E64: 93 | F64: 0 | G64: 0 | H64: 0 | I64: 0 | J64: 0+0+0 | L64: =IF(eVAL(K64)>0,IF(eVAL(K64)<=$L$6,VLOOKUP(eVAL(K64),Multiplier,2)*112,0),"") -> 
A65: 999 | B65: KERR, Leanne | C65: LTFC | D65: ENG | E65: 94 | F65: 0 | G65: 0 | H65: 0 | I65: 0 | J65: 0+0+0 | L65: =IF(eVAL(K65)>0,IF(eVAL(K65)<=$L$6,VLOOKUP(eVAL(K65),Multiplier,2)*112,0),"") -> 
A66: 999 | B66: LEWIS, Jessica | C66: Lazlo | D66: ENG | E66: 96 | F66: 0 | G66: 0 | H66: 0 | I66: 0 | J66: 0+0+0 | L66: =IF(eVAL(K66)>0,IF(eVAL(K66)<=$L$6,VLOOKUP(eVAL(K66),Multiplier,2)*112,0),"") -> 
A67: 999 | B67: MURRAY, Jessica | C67: Edinburgh | D67: SCO | E67: 93 | F67: 0 | G67: 0 | H67: 0 | I67: 0 | J67: 0+0+0 | L67: =IF(eVAL(K67)>0,IF(eVAL(K67)<=$L$6,VLOOKUP(eVAL(K67),Multiplier,2)*112,0),"") -> 
A68: 999 | B68: PRADHAN , Jzuee | C68: North London | D68: ENG | E68: 93 | F68: 0 | G68: 0 | H68: 0 | I68: 0 | J68: 0+0+0 | L68: =IF(eVAL(K68)>0,IF(eVAL(K68)<=$L$6,VLOOKUP(eVAL(K68),Multiplier,2)*112,0),"") -> 
A69: 999 | B69: ROWLAND, Helen | C69: Shakespeare's | D69: ENG | E69: 94 | F69: 0 | G69: 0 | H69: 0 | I69: 0 | J69: 0+0+0 | L69: =IF(eVAL(K69)>0,IF(eVAL(K69)<=$L$6,VLOOKUP(eVAL(K69),Multiplier,2)*112,0),"") -> 
A70: 999 | B70: ROY, Chloe | C70: Lazlo | D70: ENG | E70: 93 | F70: 0 | G70: 0 | H70: 0 | I70: 0 | J70: 0+0+0 | L70: =IF(eVAL(K70)>0,IF(eVAL(K70)<=$L$6,VLOOKUP(eVAL(K70),Multiplier,2)*112,0),"") -> 
A71: 999 | B71: SHATALINA, Katerina | C71: Camden | D71: ENG | E71: 94 | F71: 0 | G71: 0 | H71: 0 | I71: 0 | J71: 0+0+0 | L71: =IF(eVAL(K71)>0,IF(eVAL(K71)<=$L$6,VLOOKUP(eVAL(K71),Multiplier,2)*112,0),"") -> 
A72: 999 | B72: SPENCE, Niamh | C72: Foyle & Londonderry | D72: NIR | E72: 94 | F72: 0 | G72: 0 | H72: 0 | I72: 0 | J72: 0+0+0 | L72: =IF(eVAL(K72)>0,IF(eVAL(K72)<=$L$6,VLOOKUP(eVAL(K72),Multiplier,2)*112,0),"") -> 
A73: 999 | B73: STRATFORD, Jessica | C73: Manchester FC | D73: ENG | E73: 94 | F73: 0 | G73: 0 | H73: 0 | I73: 0 | J73: 0+0+0 | L73: =IF(eVAL(K73)>0,IF(eVAL(K73)<=$L$6,VLOOKUP(eVAL(K73),Multiplier,2)*112,0),"") -> 
A74: 999 | B74: TALLON, Harriot | C74: Rivington Park | D74: ENG | E74: 95 | F74: 0 | G74: 0 | H74: 0 | I74: 0 | J74: 0+0+0 | L74: =IF(eVAL(K74)>0,IF(eVAL(K74)<=$L$6,VLOOKUP(eVAL(K74),Multiplier,2)*112,0),"") -> 
A75: 999 | B75: WHITE, Lucy | C75: Bath Sword | D75: ENG | E75: 94 | F75: 0 | G75: 0 | H75: 0 | I75: 0 | J75: 0+0+0 | L75: =IF(eVAL(K75)>0,IF(eVAL(K75)<=$L$6,VLOOKUP(eVAL(K75),Multiplier,2)*112,0),"") -> 
A76: 999 | B76: YATES, Georgia | C76: Canterbury | D76: ENG | E76: 94 | F76: 0 | G76: 0 | H76: 0 | I76: 0 | J76: 0+0+0 | L76: =IF(eVAL(K76)>0,IF(eVAL(K76)<=$L$6,VLOOKUP(eVAL(K76),Multiplier,2)*112,0),"") -> 

Sheet Mult
A1: Position Multipliers
A3: position | B3: multiplier
A4: 0 | B4: 0
A5: 1 | B5: 20
A6: 2 | B6: 18
A7: 3 | B7: 16
A8: 5 | B8: 13
A9: 6 | B9: 12.96
A10: 7 | B10: 12.92
A11: 8 | B11: 12.88
A12: 9 | B12: 8.88
A13: 10 | B13: 8.84
A14: 11 | B14: 8.8
A15: 12 | B15: 8.76
A16: 13 | B16: 8.72
A17: 14 | B17: 8.68
A18: 15 | B18: 8.64
A19: 16 | B19: 8.6
A20: 17 | B20: 5.6
A21: 18 | B21: 5.56
A22: 19 | B22: 5.52
A23: 20 | B23: 5.48
A24: 21 | B24: 5.44
A25: 22 | B25: 5.4
A26: 23 | B26: 5.36
A27: 24 | B27: 5.32
A28: 25 | B28: 5.28
A29: 26 | B29: 5.24
A30: 27 | B30: 5.2
A31: 28 | B31: 5.16
A32: 29 | B32: 5.12
A33: 30 | B33: 5.08
A34: 31 | B34: 5.04
A35: 32 | B35: 5
A36: 33 | B36: 2
A37: 34 | B37: 1.98
A38: 35 | B38: 1.96
A39: 36 | B39: 1.94
A40: 37 | B40: 1.92
A41: 38 | B41: 1.9
A42: 39 | B42: 1.88
A43: 40 | B43: 1.86
A44: 41 | B44: 1.84
A45: 42 | B45: 1.82
A46: 43 | B46: 1.8
A47: 44 | B47: 1.78
A48: 45 | B48: 1.76
A49: 46 | B49: 1.74
A50: 47 | B50: 1.72
A51: 48 | B51: 1.7
A52: 49 | B52: 1.68
A53: 50 | B53: 1.66
A54: 51 | B54: 1.64
A55: 52 | B55: 1.62
A56: 53 | B56: 1.6
A57: 54 | B57: 1.58
A58: 55 | B58: 1.56
A59: 56 | B59: 1.54
A60: 57 | B60: 1.52
A61: 58 | B61: 1.5
A62: 59 | B62: 1.48
A63: 60 | B63: 1.46
A64: 61 | B64: 1.44
A65: 62 | B65: 1.42
A66: 63 | B66: 1.4
A67: 64 | B67: 1.38
A68: 65 | B68: 0
